Workbook

Sheet IntroAD
A1: ANALYSE DES DONNEES | C1: PHILIPPE DUCHEMIN | E1: www.finkeys.com
B2: REGRESSION
A4: MReg(Mx,My) | B4: régression | C4: MReg=('X/('XX).X).Y
A5: MRegCoeff(Mx,My) | B5: régression | C5: MRegCoeff=1/('XX).XY
A6: MR2(Mx,My) | B6: calcul du R2
B8: METHODE ACP - ANALYSE EN COMPOSANTES PRINCIPALES
B9: Données | D9: taille | E9: nom
B10: quantitatives | C10: X | D10: n x | E10: Mx
A12: MProjCov(Mx) | C12: P=MProj = MProd(MCentre(Mx), MVecP(MCovariance(Mx)))
A13: MVap(Mx) | C13: VP=MVap = MValP(MCovariance(Mx))
A14: MContribCov(Mx) | B14: contributions | C14: M(i, j) = P(i, j) * P(i, j) / VP(j) / n
A15: MCosinusCov(Mx) | B15: cosinus carrés | C15: M(i, j) = P(i, j) * P(i, j) / VP(i)
A16: MCorrAxeCov(Mx) | B16: corrélations | C16: C = MProd(MTran(MCentre(Mx)), P)
C17: M(i, j) = C(i, j) / Sqr(VP(j)) / lig

Sheet Tools
B1: DATA SCIENCE PROJECT
B3: Fonction | C3: Calcul | D3: Entrée | E3: Sortie
B5: MInverse(M) | C5: Inverse la matrice | D5: Matrice carrée nxn | E5: Matrice carrée nxn
B6: MTran(M) | C6: Transpose la matrice | D6: Matrice ou Vecteur | E6: Matrice ou Vecteur
B7: MProd(Mx, My) | C7: Produit matriciel | D7: 1 Matrice | E7: Matrice ou Nombre
B8: MSProd(Mx) | C8: Produit: tMx Mx | D8: 2 Matrices | E8: Matrice ou Nombre
B9: MTProd(Mx, My) | C9: Produit transposée x matrice: tMx My | D9: 2 Matrices | E9: Matrice ou Nombre
B10: MQProd(Mx, My) | C10: Produit quadratique: tMx My Mx | D10: 2 Matrices | E10: Nombre
B11: MQProdD(Mx, My) | C11: Produit quadratique: Mx My inv(Mx) | D11: 2 Matrices | E11: Nombre
B12: MQProdG(Mx, My) | C12: Produit quadratique: inv(Mx) My Mx | D12: 2 Matrices | E12: Nombre
B14: MCentre(M) | C14: Matrice Centrée | D14: Matrice carrée nxm | E14: Matrice carrée nxm
B15: MReduit(M) | C15: Matrice Centrée Réduite | D15: Matrice carrée nxm | E15: Matrice carrée nxm
B16: MCovariance(M) | C16: Matrice de Covariance de M | D16: Matrice carrée nxm | E16: Matrice carrée symétrique mxm
B17: MCorrelation(M) | C17: Matrice de Corrélation de M | D17: Matrice carrée nxm | E17: Matrice carrée symétrique mxm

Sheet ExoCorrec1 (hidden)
A1: MATRICES Exercices - Application avec Autocorrection
A4: ADDITION DE DEUX MATRICES
B5: matrice A | F5: matrice B | L5: A+B
B6: 15 | C6: -85 | D6: 0 | F6: 8 | G6: 78 | H6: 0 | I6: OK | L6: =B6:D9+F6:H9 -> 23 | M6: -7 | N6: 0 | O6: =form(L6) -> =B6:D9+F6:H9
B7: 0 | C7: 55 | D7: 6 | F7: 88 | G7: 0 | H7: 6 | L7: 88 | M7: 55 | N7: 12
B8: -7 | C8: 0 | D8: -33 | F8: 4 | G8: 1 | H8: 5 | L8: -3 | M8: 1 | N8: -28
B9: 2 | C9: -4 | D9: 8 | F9: -7 | G9: -22 | H9: -77 | L9: -5 | M9: -26 | N9: -69
A11: MULTIPLICATION PAR UN NOMBRE
B12: matrice A | F12: scalaire b | L12: A.b
B13: 15 | C13: -85 | D13: 0 | F13: 8 | I13: OK | L13: =B13:D16*F13 -> 120 | M13: -680 | N13: 0 | O13: =form(L13) -> =B13:D16*F13
B14: 0 | C14: 55 | D14: 6 | L14: 0 | M14: 440 | N14: 48
B15: -7 | C15: 0 | D15: -33 | L15: -56 | M15: 0 | N15: -264
B16: 2 | C16: -4 | D16: 8 | L16: 16 | M16: -32 | N16: 64
A18: DETERMINANT D'UNE MATRICE
B19: matrice A | L19: determinant (A)
B20: 15 | C20: -85 | D20: 0 | E20: 5 | I20: OK | L20: =MDETERM(B20:E23) -> -212325 | O20: =form(L20) -> =DETERMAT(B20:E23)
B21: 0 | C21: 55 | D21: 6 | E21: 1
B22: -7 | C22: 0 | D22: -33 | E22: 8
B23: 2 | C23: -4 | D23: 8 | E23: 7
A25: TRANSPOSEE D'UNE MATRICE
B26: matrice A | L26: AT
B27: 15 | C27: -85 | D27: 0 | I27: OK | L27: =TRANSPOSE(B27:D30) -> 15 | M27: 0 | N27: -7 | O27: 2 | Q27: =form(N27) -> =TRANSPOSE(B27:D30)
B28: 0 | C28: 55 | D28: 6 | L28: -85 | M28: 55 | N28: 0 | O28: -4
B29: -7 | C29: 0 | D29: -33 | L29: 0 | M29: 6 | N29: -33 | O29: 8
B30: 2 | C30: -4 | D30: 8
A32: PRODUIT DE DEUX MATRICES
B33: matrice A | F33: matrice B | L33: A.B
B34: 15 | C34: -85 | D34: 0 | F34: 8 | G34: 78 | H34: 0 | I34: OK | L34: =MMULT(B34:D37,F34:H36) -> -7360 | M34: 1170 | N34: -510 | O34: =form(L34) -> =PRODUITMAT(B34:D37;F34:H36)
B35: 0 | C35: 55 | D35: 6 | F35: 88 | G35: 0 | H35: 6 | L35: 4864 | M35: 6 | N35: 360
B36: -7 | C36: 0 | D36: -33 | F36: 4 | G36: 1 | H36: 5 | L36: -188 | M36: -579 | N36: -165
B37: 2 | C37: -4 | D37: 8 | L37: -304 | M37: 164 | N37: 16
A39: INVERSE D'UNE MATRICE
B40: matrice A | L40: A-1
B41: 15 | C41: -85 | D41: 0 | I41: OK | L41: =MINVERSE(B41:D43) -> 0.04816878981 | M41: 0.07444267516 | N41: 0.01353503185 | O41: =form(L41) -> =INVERSEMAT(B41:D43)
B42: 5 | C42: 55 | D42: 6 | L42: -0.00326433121 | M42: 0.01313694268 | N42: 0.002388535032
B43: -7 | C43: 0 | D43: -33 | L43: -0.01021762208 | M43: -0.01579087049 | N43: -0.03317409766
A45: PRODUIT SCALAIRE
B46: vecteur A | G46: vecteur B | L46: A.B
B47: 15 | C47: 8 | D47: -7 | E47: 14 | G47: 1 | I47: OK | L47: =MMULT(B47:E47,G47:G50) -> 22 | O47: =form(L47) -> =PRODUITMAT(B47:E47;G47:G50)
G48: 0
G49: 5
G50: 3
A52: PRODUIT D'UNE MATRICE ET DE SA TRANSPOSEE
B54: matrice A | L54: A.AT
B55: 15 | C55: -85 | D55: 0 | I55: OK | L55: =MMULT(B55:D57,TRANSPOSE(B55:D57)) -> 7450 | M55: -4600 | N55: -105 | O55: =form(L55) -> =PRODUITMAT(B55:D57;TRANSPOSE(B55:D57))
B56: 5 | C56: 55 | D56: 6 | L56: -4600 | M56: 3086 | N56: -233
B57: -7 | C57: 0 | D57: -33 | L57: -105 | M57: -233 | N57: 1138
L59: AT.A
I60: OK | L60: =MMULT(TRANSPOSE(B55:D57),B55:D57) -> 299 | M60: -1000 | N60: 261 | O60: =form(L60) -> =PRODUITMAT(TRANSPOSE(B55:D57);B55:D57)
L61: -1000 | M61: 10250 | N61: 330
L62: 261 | M62: 330 | N62: 1125
A64: RESOLUTION D'UN SYSTEME D'EQUATIONS
M72: A-1,x
B73: 13 | C73: a + | D73: -8 | E73: b + | F73: -3 | G73: c = | H73: 20 | I73: OK | L73: a= | M73: =MMULT(MINVERSE(D77:F79),H77:H79) -> 3 | O73: =form(M73) -> =PRODUITMAT(INVERSEMAT(D77:F79);H77:H79)
B74: -8 | C74: a + | D74: 10 | E74: b + | F74: -1 | G74: c = | H74: -5 | L74: b= | M74: 2
B75: -3 | C75: a + | D75: -1 | E75: b + | F75: 11 | G75: c = | H75: 0 | L75: c= | M75: 1
L76: vérification | M76: A,x
B77: premier membre: A | D77: 13 | E77: -8 | F77: -3 | G77: sec membre: B | H77: 20 | I77: OK | M77: =MMULT(D77:F79,M73:M75) -> 20 | O77: =form(M77) -> =PRODUITMAT(D77:F79;M73:M75)
D78: -8 | E78: 10 | F78: -1 | H78: -5 | M78: -5
D79: -3 | E79: -1 | F79: 11 | H79: 0 | M79: -1.776356839e-15
A81: CALCUL DE LA TRACE D'UNE MATRICE CARREE
B83: matrice A | L83: trace (A)
B84: 15 | C84: -85 | D84: 0 | I84: OK | L84: =SUM(B84:D86*MMULT(B84:D86,MINVERSE(B84:D86))) -> 37 | O84: =form(L84) -> =SOMME(B84:D86*PRODUITMAT(B84:D86;INVERSEMAT(B84:D86)))
B85: 5 | C85: 55 | D85: 6
B86: -7 | C86: 0 | D86: -33
A88: CALCUL DE LA TRACE DU PRODUIT DE DEUX MATRICES CARREES
B90: matrice A | F90: matrice B | L90: trace (AB)
B91: 15 | C91: -85 | D91: 0 | F91: 12 | G91: 2 | H91: 23 | I91: OK | L91: =SUM((B91:D93*TRANSPOSE(F91:H93))) -> 2754 | O91: =form(L91) -> =SOMME((B91:D93*TRANSPOSE(F91:H93)))
B92: 5 | C92: 55 | D92: 6 | F92: -34 | G92: 0 | H92: 5 | L92: trace (BA)
B93: -7 | C93: 0 | D93: -33 | F93: 38 | G93: -11 | H93: 3 | I93: OK | L93: =SUM((TRANSPOSE(B91:D93)*(F91:H93))) -> 2754 | O93: =form(L93) -> =SOMME((TRANSPOSE(B91:D93)*(F91:H93)))

Sheet REG
A1: REGRESSION | G1: Coordonnées | I1: Ecarts
G2: y | H2: x | I2: sur y | J2: sur x
B3: x | C3: y | D3: xx | E3: yy | F3: xy | G3: Projections | I3: Ecarts | K3: Ecarts
B4: -4.5 | C4: -7.5 | D4: =B4*B4 -> 20.25 | E4: =C4*C4 -> 56.25 | F4: =B4*C4 -> 33.75 | G4: =B4*$E$13 -> 5.035980149 | H4: =C4*$E$14 -> 2.215127701 | I4: =G4-C4 -> 12.53598015 | J4: =H4-B4 -> 6.715127701 | K4: =G4-$C$10 -> 5.035980149 | L4: =H4-$B$10 -> 2.215127701
B5: -7.5 | C5: 22.5 | D5: =B5*B5 -> 56.25 | E5: =C5*C5 -> 506.25 | F5: =B5*C5 -> -168.75 | G5: =B5*$E$13 -> 8.393300248 | H5: =C5*$E$14 -> -6.645383104 | I5: =G5-C5 -> -14.10669975 | J5: =H5-B5 -> 0.8546168959 | K5: =G5-$C$10 -> 8.393300248 | L5: =H5-$B$10 -> -6.645383104
B6: -4.5 | C6: 0.5 | D6: 20.25 | E6: 0.25 | F6: -2.25 | G6: 5.035980149 | H6: -0.1476751801 | I6: =G6-C6 -> 4.535980149 | J6: =H6-B6 -> 4.35232482 | K6: =G6-$C$10 -> 5.035980149 | L6: =H6-$B$10 -> -0.1476751801
B7: 4.5 | C7: 3.5 | D7: 20.25 | E7: 12.25 | F7: 15.75 | G7: -5.035980149 | H7: -1.033726261 | I7: =G7-C7 -> -8.535980149 | J7: =H7-B7 -> -5.533726261 | K7: =G7-$C$10 -> -5.035980149 | L7: =H7-$B$10 -> -1.033726261
B8: 3.5 | C8: -11.5 | D8: 12.25 | E8: 132.25 | F8: -40.25 | G8: -3.916873449 | H8: 3.396529142 | I8: =G8-C8 -> 7.583126551 | J8: =H8-B8 -> -0.1034708579 | K8: =G8-$C$10 -> -3.916873449 | L8: =H8-$B$10 -> 3.396529142
B9: 8.5 | C9: -7.5 | D9: 72.25 | E9: 56.25 | F9: -63.75 | G9: -9.512406948 | H9: 2.215127701 | I9: =G9-C9 -> -2.012406948 | J9: =H9-B9 -> -6.284872299 | K9: =G9-$C$10 -> -9.512406948 | L9: =H9-$B$10 -> 2.215127701
A10: somme | B10: =SUM(B4:B9) -> 0 | C10: =SUM(C4:C9) -> 0 | D10: 201.5 | E10: 763.5 | F10: -225.5 | G10: =SUM(G4:G9) -> 0 | H10: =SUM(H4:H9) -> 0 | I10: =SUMSQ(I4:I9) -> 511.1414392 | J10: =SUMSQ(J4:J9) -> 134.8984938 | K10: =SUMSQ(K4:K9) -> 252.3585608 | L10: 66.60150622
A11: somme.carres | B11: =SUMSQ(B4:B9) -> 201.5 | C11: =SUMSQ(C4:C9) -> 763.5 | G11: =SUMSQ(G4:G9) -> 252.3585608 | H11: 66.60150622 | I11: =SUM(I4:I9) -> 0 | J11: =SUM(J4:J9) -> 0 | K11: =K10+I10 -> 763.5 | L11: =L10+J10 -> 201.5
D12: PENTES | F12: DROITEREG
D13: y = a x | E13: =F10/D10 -> -1.1191067 | F13: y/x | H13: x/y
D14: x = a' y | E14: =F10/E10 -> -0.2953503602 | F14: =LINEST(C4:C9,B4:B9,1,1) -> -1.1191067 | G14: 0 | H14: =LINEST(B4:B9,C4:C9,1,1) -> -0.2953503602 | I14: 0 | J14: m1 | K14: b
D15: y = a x | E15: =1/E14 -> -3.385809313 | F15: 0.7963482405 | G15: 4.614927948 | H15: 0.210169182 | I15: 2.370816436 | J15: se1 | K15: seb
D16: x = a' y | E16: =1/E13 -> -0.8935698448 | F16: 0.3305285669 | G16: 11.30421867 | H16: 0.3305285669 | I16: 5.807290542 | J16: R2 | K16: sey
F17: 1.974862857 | G17: 4 | H17: 1.974862857 | I17: 4 | J17: F | K17: df
F18: 252.3585608 | G18: 511.1414392 | H18: 66.60150622 | I18: 134.8984938 | J18: ssreg | K18: ssresid
D19: SCT=SCE+SCR | F19: SCT | G19: SCE | H19: SCR | I19: R2 | J19: THETA | K19: ANGLE °
D20: R2=SCE/SCT | F20: =E10 -> 763.5 | G20: =K10 -> 252.3585608 | H20: =I10 -> 511.1414392 | I20: =G20/F20 -> 0.3305285669 | J20: =ACOS(SQRT(I20)) -> 0.9582946754 | K20: =J20/PI()*180 -> 54.90624043
D21: COS(THETA)=RACINE(R2) | F21: =D10 -> 201.5 | G21: =L10 -> 66.60150622 | H21: =J10 -> 134.8984938 | I21: =G21/F21 -> 0.3305285669
A23: VCV | D23: ValP | H23: Droites | I23: 10 | J23: Droites | K23: 10
A24: =D10 -> 201.5 | B24: =F10 -> -225.5 | D24: =mvalp(A24:B25) -> 842.7932833 | E24: 122.2067167 | H24: =B10 -> 0 | I24: =C10 -> 0 | J24: =H24 -> 0 | K24: =I24 -> 0
A25: =B24 -> -225.5 | B25: =E10 -> 763.5 | D25: VecP | H25: =H24+$I$23*D26 -> -3.317226451 | I25: =I24+$I$23*D27 -> 9.43376959 | J25: =J24+$K$23*E26 -> 9.43376959 | K25: =K24+$K$23*E26 -> 9.43376959
D26: =mvecp(A24:B25) -> -0.3317226451 | E26: 0.943376959 | H26: =H24-$I$23*D26 -> 3.317226451 | I26: =I24-$I$23*D27 -> -9.43376959 | J26: =J24-$K$23*E27 -> -3.317226451 | K26: =K24-$K$23*E27 -> -3.317226451
D27: 0.943376959 | E27: 0.3317226451 | H27: a | I27: b
D28: =SUMSQ(D26:D27) -> 1 | E28: =SUMSQ(E26:E27) -> 1 | G28: y = a x + b | H28: =D27/D26 -> -2.843872653 | I28: =C10-H28*B10 -> 0 | J28: axe 1
D29: =D27/D26 -> -2.843872653 | E29: =E27/E26 -> 0.3516331854 | G29: y = a x + b | H29: =E27/E26 -> 0.3516331854 | I29: =C10-H29*B10 -> 0 | J29: axe 2
C31: variables | D31: =SQRT(D24)*D26 -> -9.630207673 | E31: =SQRT(E24)*E26 -> 10.42876312 | H31: =D31/B11 -> -0.04779259391 | I31: =E31/B11 -> 0.05175564823
D32: =SQRT(D24)*D27 -> 27.38708425 | E32: =SQRT(E24)*E27 -> 3.667099195 | H32: =D32/C11 -> 0.03587044433 | I32: =E32/C11 -> 0.004803011389

Sheet ACP
A1: ANALYSE EN COMPOSANTES PRINCIPALES
B3: Matrice Covariance
A4: X | B4: poids | C4: taille | D4: age | E4: note
A5: 1 | B5: 45 | C5: 1.5 | D5: 13 | E5: 14
A6: 2 | B6: 50 | C6: 1.6 | D6: 13 | E6: 16
A7: 3 | B7: 50 | C7: 1.65 | D7: 13 | E7: 15
A8: 4 | B8: 60 | C8: 1.75 | D8: 15 | E8: 9
A9: 5 | B9: 60 | C9: 1.7 | D9: 14 | E9: 10
A10: 6 | B10: 60 | C10: 1.7 | D10: 14 | E10: 7
A11: 7 | B11: 70 | C11: 1.6 | D11: 14 | E11: 8
A12: 8 | B12: 65 | C12: 1.6 | D12: 13 | E12: 13
A13: 9 | B13: 60 | C13: 1.55 | D13: 15 | E13: 17
A14: 10 | B14: 65 | C14: 1.7 | D14: 14 | E14: 11
B15: PROJECTIONS
A16: 1 | B16: =MprojCov(ACPXX) -> -13.54633173 | C16: -1.835523772 | D16: -0.1603943833 | E16: -0.1012314638 | F16: =form(E16) -> =MprojCov(ACPXX)
A17: 2 | B17: -9.305211309 | C17: 1.476426187 | D17: -0.3514157928 | E17: 0.03066195038
A18: 3 | B18: -9.026952324 | C18: 0.5154261153 | D18: -0.3663173287 | E18: 0.06711389706
A19: 4 | B19: 2.331011122 | C19: -2.46785908 | D19: 1.084969658 | E19: 0.04609284282
A20: 5 | B20: 2.004982367 | C20: -1.504266993 | D20: 0.1013236931 | E20: 0.0344243216
A21: 6 | B21: 2.839157625 | C21: -4.385267298 | D21: 0.05293162604 | E21: -0.006159962993
A22: 7 | B22: 12.15437033 | C22: -0.6383678702 | D22: -0.3848781785 | E22: -0.08283766843
A23: 8 | B23: 5.919472336 | C23: 2.773274962 | D23: -1.077031141 | E23: 0.004709089961
A24: 9 | B24: 0.1057415049 | C24: 5.217474946 | D24: 1.209098558 | E24: -0.04560256443
A25: 10 | B25: 6.523760076 | C25: 0.848682803 | D25: -0.1082867116 | E25: 0.05282955786
A26: somme | B26: =SUM(B16:B25) -> 0 | C26: 0 | D26: -6.994405055e-15 | E26: 2.421673972e-15
A27: somme carres | B27: =SUMSQ(B16:B25) -> 594.4298099 | C27: =SUMSQ(C16:C25) -> 69.43923765 | D27: 4.255407837 | E27: 0.03079457977 | F27: =SUM(B27:E27) -> 668.15525
B28: CONTRIBUTIONS
A29: 1 | B29: =MContribCov(ACPXX) -> 0.3087044093 | C29: 0.04851936212 | D29: 0.006045568175 | E29: 0.3327796432 | F29: =form(E29) -> =MContribCov(ACPXX)
A30: 2 | B30: 0.1456638884 | C30: 0.0313919674 | D30: 0.02902026413 | E30: 0.03052989221
A31: 3 | B31: 0.1370824055 | C31: 0.003825849611 | D31: 0.03153361334 | E31: 0.1462684411
A32: 4 | B32: 0.00914088217 | C32: 0.08770730563 | D32: 0.2766266372 | E32: 0.06899104242
A33: 5 | B33: 0.006762706417 | C33: 0.03258703957 | D33: 0.002412575052 | E33: 0.0384818993
A34: 6 | B34: 0.01356058509 | C34: 0.276940962 | D34: 0.0006583991812 | E34: 0.001232202042
A35: 7 | B35: 0.248521719 | C35: 0.005868634961 | D35: 0.03481010939 | E35: 0.2228339974
A36: 8 | B36: 0.05894750254 | C36: 0.1107594823 | D36: 0.2725933972 | E36: 0.00072011141
A37: 9 | B37: 1.88100692e-05 | C37: 0.3920268387 | D37: 0.343543881 | E37: 0.06753116612
A38: 10 | B38: 0.07159709156 | C38: 0.01037255771 | D38: 0.002755555367 | E38: 0.09063160478
A39: somme | B39: =SUM(B29:B38) -> 1 | C39: 1 | D39: 1 | E39: 1
B40: COSINUS CARRES | F40: =form(E41) -> =MCosinusCov(ACPXX)
A41: 1 | B41: =MCosinusCov(ACPXX) -> 0.9817818521 | C41: 0.0180256782 | D41: 0.0001376416591 | E41: 5.482802733e-05 | F41: =SUM(B41:E41) -> 1
A42: 2 | B42: 0.9740776719 | C42: 0.02452249122 | D42: 0.001389260407 | E42: 1.057646805e-05 | F42: =SUM(B42:E42) -> 1
A43: 3 | B43: 0.9950622099 | C43: 0.003244148863 | D43: 0.001638637399 | E43: 5.500381978e-05 | F43: 1
A44: 4 | B44: 0.4277349138 | C44: 0.479431675 | D44: 0.09266616625 | E44: 0.0001672449444 | F44: 1
A45: 5 | B45: 0.6386734332 | C45: 0.3595071967 | D45: 0.001631096884 | E45: 0.0001882732056 | F45: 1
A46: 6 | B46: 0.2953304598 | C46: 0.7045654998 | D46: 0.0001026501773 | E46: 1.390226104e-06 | F46: 1
A47: 7 | B47: 0.9962067423 | C47: 0.002748062387 | D47: 0.0009989209564 | E47: 4.627434503e-05 | F47: 1
A48: 8 | B48: 0.7983407328 | C48: 0.1752298783 | D48: 0.02642888365 | E48: 5.052383081e-07 | F48: 1
A49: 9 | B49: 0.0003896288182 | C49: 0.9485950233 | D49: 0.05094288119 | E49: 7.246672396e-05 | F49: 1
A50: 10 | B50: 0.9830282336 | C50: 0.01663645671 | D50: 0.0002708447121 | E50: 6.446499928e-05 | F50: 1
B51: CORRELATIONS
A52: 1 | B52: =MCorrAxeCov(ACPXX) -> 7.39665169 | C52: 0.7339457512 | D52: -0.02945175744 | E52: 5.4129309e-05 | F52: =SUMSQ(B52:E52) -> 55.25
A53: 2 | B53: 0.03092688197 | C53: -0.03513349115 | D53: 0.01603638839 | E53: 0.05547071316 | F53: =SUMSQ(B53:E53) -> 0.005525
A54: 3 | B54: 0.3683014647 | C54: -0.006830306239 | D54: 0.6513873553 | E54: -0.001375303263 | F54: =SUMSQ(B54:E54) -> 0.56
A55: 4 | B55: -2.143810236 | C55: 2.530605932 | D55: 0.01052261094 | E55: 0.0007507127312 | F55: =SUMSQ(B55:E55) -> 11
B56: =SUMSQ(B52:B55) -> 59.44298099 | C56: =SUMSQ(C52:C55) -> 6.943923765 | D56: =SUMSQ(D52:D55) -> 0.4255407837 | E56: =SUMSQ(E52:E55) -> 0.003079457977 | F56: =SUM(B56:E56) -> 66.815525

Sheet ExoCorrec2 (hidden)
A1: MATRICES Exercices
A4: CALCUL DU PRODUIT MATRICIEL D'UNE MATRICE PAR SA TRANSPOSEE | G4: On obtient une matrice symétrique
B7: 11 | C7: 3 | D7: 5 | E7: 8 | J7: =MMULT(B7:E10,TRANSPOSE(B7:E10)) -> 219 | K7: 69 | L7: -176 | M7: 255
B8: 1 | C8: 12 | D8: 14 | E8: -6 | J8: 69 | K8: 377 | L8: 60 | M8: 67
B9: -22 | C9: 3 | D9: 5 | E9: 4 | J9: -176 | K9: 60 | L9: 534 | M9: -156
B10: 11 | C10: 6 | D10: 4 | E10: 12 | J10: 255 | K10: 67 | L10: -156 | M10: 317
A12: MATRICE DE CHOLESKY DE LA MATRICE SUIVANTE
B15: =J7:M10 -> 219 | C15: 69 | D15: -176 | E15: 255 | J15: =cholesky(B15:E18) -> 
B16: 69 | C16: 377 | D16: 60 | E16: 67
B17: -176 | C17: 60 | D17: 534 | E17: -156
B18: 255 | C18: 67 | D18: -156 | E18: 317
A20: VERIFICATION PAR LE CALCUL DU CARRE DE LA MATRICE DE CHOLESKY: A . TA
B22: =J15:M18 ->  | J22: =MMULT(B22:E25,TRANSPOSE(B22:E25)) -> 
A27: DETERMINANT DE LA MATRICE INITIALE
B29: =+J7:M10 -> 219 | C29: 69 | D29: -176 | E29: 255 | J29: =MDETERM(B29:E32) -> 320123664
B30: 69 | C30: 377 | D30: 60 | E30: 67
B31: -176 | C31: 60 | D31: 534 | E31: -156
B32: 255 | C32: 67 | D32: -156 | E32: 317
A34: DETERMINANT DE LA MATRICE DE CHOLESKY ET SON CARRE
B36: =+J15:M18 ->  | J36: =MDETERM(B36:E39) -> 
H38: CARRE | J38: =J36*J36 -> 
A41: VECTEURS PROPRES et VALEURS PROPRES D'UNE MATRICE
J42: Valeurs Propres
B43: =B15:E18 -> 219 | C43: 69 | D43: -176 | E43: 255 | J43: =Valp(B43:E46) -> 
B44: 69 | C44: 377 | D44: 60 | E44: 67
B45: -176 | C45: 60 | D45: 534 | E45: -156 | J45: Vecteurs Propres, matrice de passage P
B46: 255 | C46: 67 | D46: -156 | E46: 317 | J46: =Vecp(B43:E46) -> 
A51: VERIFICATION
B53: PRODUIT DES VALEURS PROPRES | J53: =PRODUCT(J43:M43) -> 
B55: DETERMINANT DE LA MATRICE DE PASSAGE | J55: =MDETERM(J46:M49) -> 
B57: NORME DES VECTEURS PROPRES | J57: =SUMSQ(J46:J49) ->  | K57: =SUMSQ(K46:K49) ->  | L57: =SUMSQ(L46:L49) ->  | M57: =SUMSQ(M46:M49) -> 
B58: Utilisez la fonction SOMME.CARRES
B60: Produit de la matrice par le premier vecteur propre | J60: =MMULT(B43:E46,J46:J49) -> 
B65: Division de ce produit par le vecteur propre lui même | J65: =J60:J63/J46:J49 -> 
A70: COMPLEMENT: SECONDE MANIERE D'OBTENIR UNE MATRICE RACINE CARRE
B72: Obtenir la matrice diagonale des valeurs propres | J72: Matrice Diagonale: D
J73: =J43 ->  | K73: 0 | L73: 0 | M73: 0
J74: 0 | K74: =K43 ->  | L74: 0 | M74: 0
J75: 0 | K75: 0 | L75: =L43 ->  | M75: 0
J76: 0 | K76: 0 | L76: 0 | M76: =M43 -> 
B78: Prendre les racines carrés des éléments diagonaux | J78: =SQRT(J73) ->  | K78: 0 | L78: 0 | M78: 0
J79: 0 | K79: =SQRT(K74) ->  | L79: 0 | M79: 0
J80: 0 | K80: 0 | L80: =SQRT(L75) ->  | M80: 0
J81: 0 | K81: 0 | L81: 0 | M81: =SQRT(M76) -> 
B83: Calculer P D P-1 , on obtient une matrice racine carrée | J83: =MMULT((J46:M49),MMULT(J78:M81,MINVERSE(J46:M49))) -> 
B88: Vérification | J88: =MMULT(J83:M86,TRANSPOSE(J83:M86)) -> 

Sheet taux
B1: www.euribor-ebf.eu
A2: date | B2: EONIA | C2: 1w | D2: 2w | E2: 1m | F2: 2m | G2: 3m | H2: 6m | I2: 9m | J2: 12m | L2: 1w | M2: 2w | N2: 1m | O2: 2m | P2: 3m | Q2: 6m | R2: 9m | S2: 12m
A3: 2015-01-02 | B3: =ROUND(-0.079,10) -> -0.079 | C3: =ROUND(-0.02,10) -> -0.02 | D3: =ROUND(-0.011,10) -> -0.011 | E3: =ROUND(0.016,10) -> 0.016 | F3: =ROUND(0.044,10) -> 0.044 | G3: =ROUND(0.076,10) -> 0.076 | H3: =ROUND(0.169,10) -> 0.169 | I3: =ROUND(0.243,10) -> 0.243 | J3: =ROUND(0.323,10) -> 0.323 | L3: =MCovariance(dataeuribor) -> 0.01575912823 | M3: 0.01598133489 | N3: 0.01763262474 | O3: 0.0171908446 | P3: 0.01732001424 | Q3: 0.01667998053 | R3: 0.01580014119 | S3: 0.01631181443
A4: 2015-01-05 | B4: =ROUND(-0.074,10) -> -0.074 | C4: =ROUND(-0.024,10) -> -0.024 | D4: =ROUND(-0.014,10) -> -0.014 | E4: =ROUND(0.015,10) -> 0.015 | F4: =ROUND(0.043,10) -> 0.043 | G4: =ROUND(0.075,10) -> 0.075 | H4: =ROUND(0.169,10) -> 0.169 | I4: =ROUND(0.241,10) -> 0.241 | J4: =ROUND(0.321,10) -> 0.321 | L4: 0.01598133489 | M4: 0.01622628645 | N4: 0.0179168086 | O4: 0.0174644149 | P4: 0.0175950649 | Q4: 0.01695034097 | R4: 0.01606310559 | S4: 0.01658421544
A5: 2015-01-06 | B5: =ROUND(-0.075,10) -> -0.075 | C5: =ROUND(-0.028,10) -> -0.028 | D5: =ROUND(-0.018,10) -> -0.018 | E5: =ROUND(0.015,10) -> 0.015 | F5: =ROUND(0.04,10) -> 0.04 | G5: =ROUND(0.073,10) -> 0.073 | H5: =ROUND(0.168,10) -> 0.168 | I5: =ROUND(0.24,10) -> 0.24 | J5: =ROUND(0.319,10) -> 0.319 | L5: 0.01763262474 | M5: 0.0179168086 | N5: 0.01986394791 | O5: 0.01938393536 | P5: 0.0195428101 | Q5: 0.01882685174 | R5: 0.01782208712 | S5: 0.01840134706
A6: 2015-01-07 | B6: =ROUND(-0.069,10) -> -0.069 | C6: =ROUND(-0.033,10) -> -0.033 | D6: =ROUND(-0.024,10) -> -0.024 | E6: =ROUND(0.012,10) -> 0.012 | F6: =ROUND(0.038,10) -> 0.038 | G6: =ROUND(0.07,10) -> 0.07 | H6: =ROUND(0.168,10) -> 0.168 | I6: =ROUND(0.241,10) -> 0.241 | J6: =ROUND(0.319,10) -> 0.319 | L6: 0.0171908446 | M6: 0.0174644149 | N6: 0.01938393536 | O6: 0.01897248334 | P6: 0.01917278023 | Q6: 0.01854107335 | R6: 0.01754991988 | S6: 0.01814296654
A7: 2015-01-08 | B7: =ROUND(-0.07,10) -> -0.07 | C7: =ROUND(-0.036,10) -> -0.036 | D7: =ROUND(-0.028,10) -> -0.028 | E7: =ROUND(0.01,10) -> 0.01 | F7: =ROUND(0.038,10) -> 0.038 | G7: =ROUND(0.07,10) -> 0.07 | H7: =ROUND(0.167,10) -> 0.167 | I7: =ROUND(0.241,10) -> 0.241 | J7: =ROUND(0.319,10) -> 0.319 | L7: 0.01732001424 | M7: 0.0175950649 | N7: 0.0195428101 | O7: 0.01917278023 | P7: 0.01948098608 | Q7: 0.01897844208 | R7: 0.01799215861 | S7: 0.01864799522
A8: 2015-01-09 | B8: =ROUND(-0.047,10) -> -0.047 | C8: =ROUND(-0.039,10) -> -0.039 | D8: =ROUND(-0.029,10) -> -0.029 | E8: =ROUND(0.009,10) -> 0.009 | F8: =ROUND(0.038,10) -> 0.038 | G8: =ROUND(0.07,10) -> 0.07 | H8: =ROUND(0.168,10) -> 0.168 | I8: =ROUND(0.24,10) -> 0.24 | J8: =ROUND(0.318,10) -> 0.318 | L8: 0.01667998053 | M8: 0.01695034097 | N8: 0.01882685174 | O8: 0.01854107335 | P8: 0.01897844208 | Q8: 0.01880848062 | R8: 0.0179360591 | S8: 0.01870093458
A9: 2015-01-12 | B9: =ROUND(-0.063,10) -> -0.063 | C9: =ROUND(-0.042,10) -> -0.042 | D9: =ROUND(-0.032,10) -> -0.032 | E9: =ROUND(0.009,10) -> 0.009 | F9: =ROUND(0.039,10) -> 0.039 | G9: =ROUND(0.071,10) -> 0.071 | H9: =ROUND(0.167,10) -> 0.167 | I9: =ROUND(0.238,10) -> 0.238 | J9: =ROUND(0.317,10) -> 0.317 | L9: 0.01580014119 | M9: 0.01606310559 | N9: 0.01782208712 | O9: 0.01754991988 | P9: 0.01799215861 | Q9: 0.0179360591 | R9: 0.01720747437 | S9: 0.01798877305
A10: 2015-01-13 | B10: =ROUND(-0.069,10) -> -0.069 | C10: =ROUND(-0.042,10) -> -0.042 | D10: =ROUND(-0.033,10) -> -0.033 | E10: =ROUND(0.008,10) -> 0.008 | F10: =ROUND(0.039,10) -> 0.039 | G10: =ROUND(0.071,10) -> 0.071 | H10: =ROUND(0.166,10) -> 0.166 | I10: =ROUND(0.237,10) -> 0.237 | J10: =ROUND(0.318,10) -> 0.318 | L10: 0.01631181443 | M10: 0.01658421544 | N10: 0.01840134706 | O10: 0.01814296654 | P10: 0.01864799522 | Q10: 0.01870093458 | R10: 0.01798877305 | S10: 0.01887616238
A11: 2015-01-14 | B11: =ROUND(-0.067,10) -> -0.067 | C11: =ROUND(-0.047,10) -> -0.047 | D11: =ROUND(-0.037,10) -> -0.037 | E11: =ROUND(0.006,10) -> 0.006 | F11: =ROUND(0.038,10) -> 0.038 | G11: =ROUND(0.069,10) -> 0.069 | H11: =ROUND(0.162,10) -> 0.162 | I11: =ROUND(0.238,10) -> 0.238 | J11: =ROUND(0.315,10) -> 0.315
A12: 2015-01-15 | B12: =ROUND(-0.067,10) -> -0.067 | C12: =ROUND(-0.049,10) -> -0.049 | D12: =ROUND(-0.032,10) -> -0.032 | E12: =ROUND(0.007,10) -> 0.007 | F12: =ROUND(0.038,10) -> 0.038 | G12: =ROUND(0.069,10) -> 0.069 | H12: =ROUND(0.161,10) -> 0.161 | I12: =ROUND(0.235,10) -> 0.235 | J12: =ROUND(0.313,10) -> 0.313 | L12: =mvalp(L3:S10) -> 0.1426792575 | M12: 0.002239607705 | N12: 0.000191155678 | O12: 4.909027883e-05 | P12: 1.43616957e-05 | Q12: 8.717591414e-06 | R12: 8.529271298e-06 | S12: 4.229637388e-06 | T12: =SUM(L12:S12) -> 0.1451949494
A13: 2015-01-16 | B13: =ROUND(-0.081,10) -> -0.081 | C13: =ROUND(-0.051,10) -> -0.051 | D13: =ROUND(-0.033,10) -> -0.033 | E13: =ROUND(0.002,10) -> 0.002 | F13: =ROUND(0.031,10) -> 0.031 | G13: =ROUND(0.06,10) -> 0.06 | H13: =ROUND(0.152,10) -> 0.152 | I13: =ROUND(0.224,10) -> 0.224 | J13: =ROUND(0.299,10) -> 0.299 | L13: =L12/$T$12 -> 0.9826736958 | M13: =M12/$T$12 -> 0.01542483203 | N13: =N12/$T$12 -> 0.001316544954 | O13: =O12/$T$12 -> 0.0003380990802 | P13: 9.89131906e-05
A14: 2015-01-19 | B14: =ROUND(-0.075,10) -> -0.075 | C14: =ROUND(-0.056,10) -> -0.056 | D14: =ROUND(-0.038,10) -> -0.038 | E14: =ROUND(-0.002,10) -> -0.002 | F14: =ROUND(0.026,10) -> 0.026 | G14: =ROUND(0.056,10) -> 0.056 | H14: =ROUND(0.145,10) -> 0.145 | I14: =ROUND(0.217,10) -> 0.217 | J14: =ROUND(0.289,10) -> 0.289 | L14: =mvecp(L3:S10) -> 0.3290011391 | M14: -0.3419442722 | N14: 0.4609656896 | O14: -0.4570028269 | P14: -0.3056304731 | Q14: -0.1430386273 | R14: -0.02695929136 | S14: 0.4887684277
A15: 2015-01-20 | B15: =ROUND(-0.081,10) -> -0.081 | C15: =ROUND(-0.059,10) -> -0.059 | D15: =ROUND(-0.039,10) -> -0.039 | E15: =ROUND(-0.005,10) -> -0.005 | F15: =ROUND(0.024,10) -> 0.024 | G15: =ROUND(0.055,10) -> 0.055 | H15: =ROUND(0.142,10) -> 0.142 | I15: =ROUND(0.214,10) -> 0.214 | J15: =ROUND(0.284,10) -> 0.284 | L15: 0.334228909 | M15: -0.3360501339 | N15: 0.4032402556 | O15: -0.08951828224 | P15: 0.2615991367 | Q15: 0.1361736121 | R15: 0.03732608943 | S15: -0.7185920396
A16: 2015-01-21 | B16: =ROUND(-0.068,10) -> -0.068 | C16: =ROUND(-0.057,10) -> -0.057 | D16: =ROUND(-0.036,10) -> -0.036 | E16: =ROUND(-0.004,10) -> -0.004 | F16: =ROUND(0.022,10) -> 0.022 | G16: =ROUND(0.055,10) -> 0.055 | H16: =ROUND(0.141,10) -> 0.141 | I16: =ROUND(0.213,10) -> 0.213 | J16: =ROUND(0.283,10) -> 0.283 | L16: 0.3704866221 | M16: -0.3407832214 | N16: -0.06871723082 | O16: 0.554054988 | P16: 0.3479273364 | Q16: 0.369833418 | R16: -0.000861726555 | S16: 0.4208046344
A17: 2015-01-22 | B17: =ROUND(-0.036,10) -> -0.036 | C17: =ROUND(-0.035,10) -> -0.035 | D17: =ROUND(-0.025,10) -> -0.025 | E17: =ROUND(-0.001,10) -> -0.001 | F17: =ROUND(0.023,10) -> 0.023 | G17: =ROUND(0.055,10) -> 0.055 | H17: =ROUND(0.141,10) -> 0.141 | I17: =ROUND(0.212,10) -> 0.212 | J17: =ROUND(0.282,10) -> 0.282 | L17: 0.3631355209 | M17: -0.2355650497 | N17: -0.3547005272 | O17: 0.2768379763 | P17: -0.3062091705 | Q17: -0.5551902407 | R17: -0.4136207868 | S17: -0.1926332187 | T17: =SQRT(10) -> 3.16227766
A18: 2015-01-23 | B18: =ROUND(-0.019,10) -> -0.019 | C18: =ROUND(-0.023,10) -> -0.023 | D18: =ROUND(-0.016,10) -> -0.016 | E18: =ROUND(0.001,10) -> 0.001 | F18: =ROUND(0.024,10) -> 0.024 | G18: =ROUND(0.053,10) -> 0.053 | H18: =ROUND(0.137,10) -> 0.137 | I18: =ROUND(0.206,10) -> 0.206 | J18: =ROUND(0.275,10) -> 0.275 | L18: 0.368889213 | M18: -0.05671508594 | N18: -0.5143202885 | O18: -0.2206124789 | P18: -0.2941982208 | Q18: 0.2033050864 | R18: 0.640274315 | S18: -0.09834720596
A19: 2015-01-26 | B19: =ROUND(-0.033,10) -> -0.033 | C19: =ROUND(-0.018,10) -> -0.018 | D19: =ROUND(-0.012,10) -> -0.012 | E19: =ROUND(0.002,10) -> 0.002 | F19: =ROUND(0.026,10) -> 0.026 | G19: =ROUND(0.054,10) -> 0.054 | H19: =ROUND(0.138,10) -> 0.138 | I19: =ROUND(0.207,10) -> 0.207 | J19: =ROUND(0.277,10) -> 0.277 | L19: 0.3607045385 | M19: 0.3056946989 | N19: -0.3135009189 | O19: -0.5015484774 | P19: 0.3566363618 | Q19: 0.2134785276 | R19: -0.5007498545 | S19: 0.0556443405
A20: 2015-01-27 | B20: =ROUND(-0.019,10) -> -0.019 | C20: =ROUND(-0.014,10) -> -0.014 | D20: =ROUND(-0.01,10) -> -0.01 | E20: =ROUND(0.005,10) -> 0.005 | F20: =ROUND(0.028,10) -> 0.028 | G20: =ROUND(0.055,10) -> 0.055 | H20: =ROUND(0.138,10) -> 0.138 | I20: =ROUND(0.208,10) -> 0.208 | J20: =ROUND(0.277,10) -> 0.277 | L20: 0.3431792888 | M20: 0.4183067875 | N20: 0.1584647555 | O20: 0.08286316133 | P20: 0.4249216427 | Q20: -0.575337486 | R20: 0.3897751589 | S20: 0.1085067985
A21: 2015-01-28 | B21: =ROUND(-0.029,10) -> -0.029 | C21: =ROUND(-0.014,10) -> -0.014 | D21: =ROUND(-0.011,10) -> -0.011 | E21: =ROUND(0.001,10) -> 0.001 | F21: =ROUND(0.025,10) -> 0.025 | G21: =ROUND(0.053,10) -> 0.053 | H21: =ROUND(0.135,10) -> 0.135 | I21: =ROUND(0.204,10) -> 0.204 | J21: =ROUND(0.273,10) -> 0.273 | L21: 0.3563179808 | M21: 0.5717288757 | N21: 0.3262731117 | O21: 0.3040257456 | P21: -0.4785790718 | Q21: 0.3131524793 | R21: -0.1190410521 | S21: -0.07748946055
A22: 2015-01-29 | B22: =ROUND(-0.028,10) -> -0.028 | C22: =ROUND(-0.025,10) -> -0.025 | D22: =ROUND(-0.018,10) -> -0.018 | E22: =ROUND(0.001,10) -> 0.001 | F22: =ROUND(0.023,10) -> 0.023 | G22: =ROUND(0.052,10) -> 0.052 | H22: =ROUND(0.132,10) -> 0.132 | I22: =ROUND(0.203,10) -> 0.203 | J22: =ROUND(0.271,10) -> 0.271
A23: 2015-01-30 | B23: =ROUND(0.086,10) -> 0.086 | C23: =ROUND(-0.024,10) -> -0.024 | D23: =ROUND(-0.016,10) -> -0.016 | E23: =ROUND(0.001,10) -> 0.001 | F23: =ROUND(0.023,10) -> 0.023 | G23: =ROUND(0.054,10) -> 0.054 | H23: =ROUND(0.132,10) -> 0.132 | I23: =ROUND(0.202,10) -> 0.202 | J23: =ROUND(0.27,10) -> 0.27
A24: 2015-02-02 | B24: =ROUND(-0.024,10) -> -0.024 | C24: =ROUND(-0.022,10) -> -0.022 | D24: =ROUND(-0.017,10) -> -0.017 | E24: =ROUND(0.003,10) -> 0.003 | F24: =ROUND(0.024,10) -> 0.024 | G24: =ROUND(0.055,10) -> 0.055 | H24: =ROUND(0.134,10) -> 0.134 | I24: =ROUND(0.202,10) -> 0.202 | J24: =ROUND(0.271,10) -> 0.271
A25: 2015-02-03 | B25: =ROUND(-0.034,10) -> -0.034 | C25: =ROUND(-0.025,10) -> -0.025 | D25: =ROUND(-0.021,10) -> -0.021 | E25: =ROUND(0.001,10) -> 0.001 | F25: =ROUND(0.024,10) -> 0.024 | G25: =ROUND(0.055,10) -> 0.055 | H25: =ROUND(0.132,10) -> 0.132 | I25: =ROUND(0.199,10) -> 0.199 | J25: =ROUND(0.266,10) -> 0.266
A26: 2015-02-04 | B26: =ROUND(-0.037,10) -> -0.037 | C26: =ROUND(-0.03,10) -> -0.03 | D26: =ROUND(-0.024,10) -> -0.024 | E26: =ROUND(0.001,10) -> 0.001 | F26: =ROUND(0.023,10) -> 0.023 | G26: =ROUND(0.055,10) -> 0.055 | H26: =ROUND(0.132,10) -> 0.132 | I26: =ROUND(0.195,10) -> 0.195 | J26: =ROUND(0.263,10) -> 0.263
A27: 2015-02-05 | B27: =ROUND(-0.026,10) -> -0.026 | C27: =ROUND(-0.032,10) -> -0.032 | D27: =ROUND(-0.025,10) -> -0.025 | E27: =ROUND(0,10) -> 0 | F27: =ROUND(0.022,10) -> 0.022 | G27: =ROUND(0.051,10) -> 0.051 | H27: =ROUND(0.132,10) -> 0.132 | I27: =ROUND(0.196,10) -> 0.196 | J27: =ROUND(0.262,10) -> 0.262
A28: 2015-02-06 | B28: =ROUND(-0.037,10) -> -0.037 | C28: =ROUND(-0.032,10) -> -0.032 | D28: =ROUND(-0.024,10) -> -0.024 | E28: =ROUND(0.002,10) -> 0.002 | F28: =ROUND(0.024,10) -> 0.024 | G28: =ROUND(0.053,10) -> 0.053 | H28: =ROUND(0.132,10) -> 0.132 | I28: =ROUND(0.196,10) -> 0.196 | J28: =ROUND(0.261,10) -> 0.261
A29: 2015-02-09 | B29: =ROUND(-0.042,10) -> -0.042 | C29: =ROUND(-0.031,10) -> -0.031 | D29: =ROUND(-0.024,10) -> -0.024 | E29: =ROUND(-0.001,10) -> -0.001 | F29: =ROUND(0.022,10) -> 0.022 | G29: =ROUND(0.051,10) -> 0.051 | H29: =ROUND(0.131,10) -> 0.131 | I29: =ROUND(0.195,10) -> 0.195 | J29: =ROUND(0.261,10) -> 0.261
A30: 2015-02-10 | B30: =ROUND(-0.041,10) -> -0.041 | C30: =ROUND(-0.031,10) -> -0.031 | D30: =ROUND(-0.024,10) -> -0.024 | E30: =ROUND(0,10) -> 0 | F30: =ROUND(0.022,10) -> 0.022 | G30: =ROUND(0.05,10) -> 0.05 | H30: =ROUND(0.13,10) -> 0.13 | I30: =ROUND(0.193,10) -> 0.193 | J30: =ROUND(0.262,10) -> 0.262
A31: 2015-02-11 | B31: =ROUND(-0.048,10) -> -0.048 | C31: =ROUND(-0.033,10) -> -0.033 | D31: =ROUND(-0.025,10) -> -0.025 | E31: =ROUND(0.001,10) -> 0.001 | F31: =ROUND(0.022,10) -> 0.022 | G31: =ROUND(0.049,10) -> 0.049 | H31: =ROUND(0.129,10) -> 0.129 | I31: =ROUND(0.191,10) -> 0.191 | J31: =ROUND(0.26,10) -> 0.26
A32: 2015-02-12 | B32: =ROUND(-0.045,10) -> -0.045 | C32: =ROUND(-0.034,10) -> -0.034 | D32: =ROUND(-0.02,10) -> -0.02 | E32: =ROUND(0.002,10) -> 0.002 | F32: =ROUND(0.021,10) -> 0.021 | G32: =ROUND(0.048,10) -> 0.048 | H32: =ROUND(0.128,10) -> 0.128 | I32: =ROUND(0.189,10) -> 0.189 | J32: =ROUND(0.26,10) -> 0.26
A33: 2015-02-13 | B33: =ROUND(-0.046,10) -> -0.046 | C33: =ROUND(-0.034,10) -> -0.034 | D33: =ROUND(-0.019,10) -> -0.019 | E33: =ROUND(0.002,10) -> 0.002 | F33: 0.021 | G33: =ROUND(0.048,10) -> 0.048 | H33: =ROUND(0.127,10) -> 0.127 | I33: =ROUND(0.188,10) -> 0.188 | J33: =ROUND(0.259,10) -> 0.259
A34: 2015-02-16 | B34: =ROUND(-0.049,10) -> -0.049 | C34: =ROUND(-0.033,10) -> -0.033 | D34: =ROUND(-0.02,10) -> -0.02 | E34: =ROUND(0.001,10) -> 0.001 | F34: 0.021 | G34: =ROUND(0.048,10) -> 0.048 | H34: =ROUND(0.128,10) -> 0.128 | I34: =ROUND(0.186,10) -> 0.186 | J34: =ROUND(0.258,10) -> 0.258
A35: 2015-02-17 | B35: =ROUND(-0.04,10) -> -0.04 | C35: =ROUND(-0.032,10) -> -0.032 | D35: =ROUND(-0.019,10) -> -0.019 | E35: =ROUND(0.001,10) -> 0.001 | F35: 0.021 | G35: =ROUND(0.047,10) -> 0.047 | H35: =ROUND(0.127,10) -> 0.127 | I35: =ROUND(0.186,10) -> 0.186 | J35: =ROUND(0.258,10) -> 0.258
A36: 2015-02-18 | B36: =ROUND(-0.038,10) -> -0.038 | C36: =ROUND(-0.032,10) -> -0.032 | D36: =ROUND(-0.02,10) -> -0.02 | E36: =ROUND(0,10) -> 0 | F36: 0.021 | G36: =ROUND(0.048,10) -> 0.048 | H36: =ROUND(0.126,10) -> 0.126 | I36: =ROUND(0.184,10) -> 0.184 | J36: =ROUND(0.255,10) -> 0.255
A37: 2015-02-19 | B37: =ROUND(-0.034,10) -> -0.034 | C37: =ROUND(-0.017,10) -> -0.017 | D37: =ROUND(-0.016,10) -> -0.016 | E37: =ROUND(0,10) -> 0 | F37: 0.021 | G37: =ROUND(0.048,10) -> 0.048 | H37: =ROUND(0.125,10) -> 0.125 | I37: =ROUND(0.181,10) -> 0.181 | J37: =ROUND(0.252,10) -> 0.252
A38: 2015-02-20 | B38: =ROUND(-0.043,10) -> -0.043 | C38: =ROUND(-0.013,10) -> -0.013 | D38: =ROUND(-0.014,10) -> -0.014 | E38: =ROUND(0.001,10) -> 0.001 | F38: 0.021 | G38: =ROUND(0.048,10) -> 0.048 | H38: =ROUND(0.124,10) -> 0.124 | I38: =ROUND(0.18,10) -> 0.18 | J38: =ROUND(0.25,10) -> 0.25
A39: 2015-02-23 | B39: =ROUND(-0.044,10) -> -0.044 | C39: =ROUND(-0.009,10) -> -0.009 | D39: =ROUND(-0.011,10) -> -0.011 | E39: =ROUND(0.001,10) -> 0.001 | F39: =ROUND(0.019,10) -> 0.019 | G39: =ROUND(0.045,10) -> 0.045 | H39: =ROUND(0.119,10) -> 0.119 | I39: =ROUND(0.175,10) -> 0.175 | J39: =ROUND(0.246,10) -> 0.246
A40: 2015-02-24 | B40: =ROUND(-0.048,10) -> -0.048 | C40: =ROUND(-0.004,10) -> -0.004 | D40: =ROUND(-0.009,10) -> -0.009 | E40: =ROUND(0.001,10) -> 0.001 | F40: =ROUND(0.02,10) -> 0.02 | G40: =ROUND(0.044,10) -> 0.044 | H40: =ROUND(0.119,10) -> 0.119 | I40: =ROUND(0.174,10) -> 0.174 | J40: =ROUND(0.245,10) -> 0.245
A41: 2015-02-25 | B41: =ROUND(-0.046,10) -> -0.046 | C41: =ROUND(-0.006,10) -> -0.006 | D41: =ROUND(-0.009,10) -> -0.009 | E41: =ROUND(0.001,10) -> 0.001 | F41: =ROUND(0.019,10) -> 0.019 | G41: =ROUND(0.042,10) -> 0.042 | H41: =ROUND(0.118,10) -> 0.118 | I41: =ROUND(0.169,10) -> 0.169 | J41: =ROUND(0.241,10) -> 0.241
A42: 2015-02-26 | B42: =ROUND(-0.062,10) -> -0.062 | C42: =ROUND(-0.021,10) -> -0.021 | D42: =ROUND(-0.019,10) -> -0.019 | E42: =ROUND(-0.004,10) -> -0.004 | F42: =ROUND(0.016,10) -> 0.016 | G42: =ROUND(0.04,10) -> 0.04 | H42: =ROUND(0.114,10) -> 0.114 | I42: =ROUND(0.166,10) -> 0.166 | J42: =ROUND(0.238,10) -> 0.238
A43: 2015-02-27 | B43: =ROUND(0.064,10) -> 0.064 | C43: =ROUND(-0.029,10) -> -0.029 | D43: =ROUND(-0.026,10) -> -0.026 | E43: =ROUND(-0.005,10) -> -0.005 | F43: =ROUND(0.018,10) -> 0.018 | G43: =ROUND(0.039,10) -> 0.039 | H43: =ROUND(0.11,10) -> 0.11 | I43: =ROUND(0.161,10) -> 0.161 | J43: =ROUND(0.233,10) -> 0.233
A44: 2015-03-02 | B44: =ROUND(-0.055,10) -> -0.055 | C44: =ROUND(-0.031,10) -> -0.031 | D44: =ROUND(-0.028,10) -> -0.028 | E44: =ROUND(-0.005,10) -> -0.005 | F44: =ROUND(0.019,10) -> 0.019 | G44: =ROUND(0.039,10) -> 0.039 | H44: =ROUND(0.11,10) -> 0.11 | I44: =ROUND(0.161,10) -> 0.161 | J44: =ROUND(0.23,10) -> 0.23
A45: 2015-03-03 | B45: =ROUND(-0.063,10) -> -0.063 | C45: =ROUND(-0.035,10) -> -0.035 | D45: =ROUND(-0.029,10) -> -0.029 | E45: =ROUND(-0.006,10) -> -0.006 | F45: =ROUND(0.018,10) -> 0.018 | G45: =ROUND(0.038,10) -> 0.038 | H45: =ROUND(0.109,10) -> 0.109 | I45: =ROUND(0.159,10) -> 0.159 | J45: =ROUND(0.228,10) -> 0.228
A46: 2015-03-04 | B46: =ROUND(-0.06,10) -> -0.06 | C46: =ROUND(-0.038,10) -> -0.038 | D46: =ROUND(-0.029,10) -> -0.029 | E46: =ROUND(-0.006,10) -> -0.006 | F46: =ROUND(0.017,10) -> 0.017 | G46: =ROUND(0.038,10) -> 0.038 | H46: =ROUND(0.11,10) -> 0.11 | I46: =ROUND(0.158,10) -> 0.158 | J46: =ROUND(0.227,10) -> 0.227
A47: 2015-03-05 | B47: =ROUND(-0.056,10) -> -0.056 | C47: =ROUND(-0.042,10) -> -0.042 | D47: =ROUND(-0.032,10) -> -0.032 | E47: =ROUND(-0.007,10) -> -0.007 | F47: =ROUND(0.016,10) -> 0.016 | G47: =ROUND(0.036,10) -> 0.036 | H47: =ROUND(0.108,10) -> 0.108 | I47: =ROUND(0.158,10) -> 0.158 | J47: =ROUND(0.226,10) -> 0.226
A48: 2015-03-06 | B48: =ROUND(-0.064,10) -> -0.064 | C48: =ROUND(-0.042,10) -> -0.042 | D48: =ROUND(-0.032,10) -> -0.032 | E48: =ROUND(-0.008,10) -> -0.008 | F48: =ROUND(0.015,10) -> 0.015 | G48: =ROUND(0.036,10) -> 0.036 | H48: =ROUND(0.107,10) -> 0.107 | I48: =ROUND(0.158,10) -> 0.158 | J48: =ROUND(0.225,10) -> 0.225
A49: 2015-03-09 | B49: =ROUND(-0.064,10) -> -0.064 | C49: =ROUND(-0.042,10) -> -0.042 | D49: =ROUND(-0.033,10) -> -0.033 | E49: =ROUND(-0.008,10) -> -0.008 | F49: =ROUND(0.014,10) -> 0.014 | G49: =ROUND(0.035,10) -> 0.035 | H49: =ROUND(0.105,10) -> 0.105 | I49: =ROUND(0.155,10) -> 0.155 | J49: =ROUND(0.222,10) -> 0.222
A50: 2015-03-10 | B50: =ROUND(-0.064,10) -> -0.064 | C50: =ROUND(-0.044,10) -> -0.044 | D50: =ROUND(-0.035,10) -> -0.035 | E50: =ROUND(-0.009,10) -> -0.009 | F50: =ROUND(0.012,10) -> 0.012 | G50: =ROUND(0.032,10) -> 0.032 | H50: =ROUND(0.102,10) -> 0.102 | I50: =ROUND(0.152,10) -> 0.152 | J50: =ROUND(0.219,10) -> 0.219
A51: 2015-03-11 | B51: =ROUND(-0.055,10) -> -0.055 | C51: =ROUND(-0.044,10) -> -0.044 | D51: =ROUND(-0.038,10) -> -0.038 | E51: =ROUND(-0.011,10) -> -0.011 | F51: =ROUND(0.009,10) -> 0.009 | G51: =ROUND(0.029,10) -> 0.029 | H51: =ROUND(0.099,10) -> 0.099 | I51: =ROUND(0.149,10) -> 0.149 | J51: =ROUND(0.217,10) -> 0.217
A52: 2015-03-12 | B52: =ROUND(-0.055,10) -> -0.055 | C52: =ROUND(-0.047,10) -> -0.047 | D52: =ROUND(-0.041,10) -> -0.041 | E52: =ROUND(-0.009,10) -> -0.009 | F52: =ROUND(0.007,10) -> 0.007 | G52: =ROUND(0.027,10) -> 0.027 | H52: =ROUND(0.098,10) -> 0.098 | I52: =ROUND(0.146,10) -> 0.146 | J52: =ROUND(0.215,10) -> 0.215
A53: 2015-03-13 | B53: =ROUND(-0.04,10) -> -0.04 | C53: =ROUND(-0.049,10) -> -0.049 | D53: =ROUND(-0.046,10) -> -0.046 | E53: =ROUND(-0.01,10) -> -0.01 | F53: =ROUND(0.007,10) -> 0.007 | G53: =ROUND(0.025,10) -> 0.025 | H53: =ROUND(0.096,10) -> 0.096 | I53: =ROUND(0.144,10) -> 0.144 | J53: =ROUND(0.214,10) -> 0.214
A54: 2015-03-16 | B54: =ROUND(-0.058,10) -> -0.058 | C54: =ROUND(-0.05,10) -> -0.05 | D54: =ROUND(-0.037,10) -> -0.037 | E54: =ROUND(-0.011,10) -> -0.011 | F54: =ROUND(0.006,10) -> 0.006 | G54: =ROUND(0.025,10) -> 0.025 | H54: =ROUND(0.096,10) -> 0.096 | I54: =ROUND(0.141,10) -> 0.141 | J54: =ROUND(0.212,10) -> 0.212
A55: 2015-03-17 | B55: =ROUND(-0.041,10) -> -0.041 | C55: =ROUND(-0.051,10) -> -0.051 | D55: =ROUND(-0.035,10) -> -0.035 | E55: =ROUND(-0.012,10) -> -0.012 | F55: =ROUND(0.007,10) -> 0.007 | G55: =ROUND(0.025,10) -> 0.025 | H55: =ROUND(0.095,10) -> 0.095 | I55: =ROUND(0.139,10) -> 0.139 | J55: =ROUND(0.209,10) -> 0.209
A56: 2015-03-18 | B56: =ROUND(-0.057,10) -> -0.057 | C56: =ROUND(-0.05,10) -> -0.05 | D56: =ROUND(-0.034,10) -> -0.034 | E56: =ROUND(-0.011,10) -> -0.011 | F56: =ROUND(0.008,10) -> 0.008 | G56: =ROUND(0.025,10) -> 0.025 | H56: =ROUND(0.096,10) -> 0.096 | I56: =ROUND(0.142,10) -> 0.142 | J56: =ROUND(0.212,10) -> 0.212
A57: 2015-03-19 | B57: =ROUND(-0.04,10) -> -0.04 | C57: =ROUND(-0.052,10) -> -0.052 | D57: =ROUND(-0.034,10) -> -0.034 | E57: =ROUND(-0.011,10) -> -0.011 | F57: =ROUND(0.008,10) -> 0.008 | G57: =ROUND(0.024,10) -> 0.024 | H57: =ROUND(0.094,10) -> 0.094 | I57: =ROUND(0.141,10) -> 0.141 | J57: =ROUND(0.209,10) -> 0.209
A58: 2015-03-20 | B58: =ROUND(-0.055,10) -> -0.055 | C58: =ROUND(-0.055,10) -> -0.055 | D58: =ROUND(-0.038,10) -> -0.038 | E58: =ROUND(-0.014,10) -> -0.014 | F58: =ROUND(0.006,10) -> 0.006 | G58: =ROUND(0.021,10) -> 0.021 | H58: =ROUND(0.089,10) -> 0.089 | I58: =ROUND(0.138,10) -> 0.138 | J58: =ROUND(0.205,10) -> 0.205
A59: 2015-03-23 | B59: =ROUND(-0.048,10) -> -0.048 | C59: =ROUND(-0.039,10) -> -0.039 | D59: =ROUND(-0.035,10) -> -0.035 | E59: =ROUND(-0.012,10) -> -0.012 | F59: =ROUND(0.008,10) -> 0.008 | G59: =ROUND(0.022,10) -> 0.022 | H59: =ROUND(0.089,10) -> 0.089 | I59: =ROUND(0.138,10) -> 0.138 | J59: =ROUND(0.203,10) -> 0.203
A60: 2015-03-24 | B60: =ROUND(-0.059,10) -> -0.059 | C60: =ROUND(-0.035,10) -> -0.035 | D60: =ROUND(-0.034,10) -> -0.034 | E60: =ROUND(-0.012,10) -> -0.012 | F60: =ROUND(0.008,10) -> 0.008 | G60: =ROUND(0.021,10) -> 0.021 | H60: =ROUND(0.089,10) -> 0.089 | I60: =ROUND(0.139,10) -> 0.139 | J60: =ROUND(0.202,10) -> 0.202
A61: 2015-03-25 | B61: =ROUND(-0.063,10) -> -0.063 | C61: =ROUND(-0.037,10) -> -0.037 | D61: =ROUND(-0.033,10) -> -0.033 | E61: =ROUND(-0.012,10) -> -0.012 | F61: =ROUND(0.007,10) -> 0.007 | G61: =ROUND(0.021,10) -> 0.021 | H61: =ROUND(0.088,10) -> 0.088 | I61: =ROUND(0.138,10) -> 0.138 | J61: =ROUND(0.201,10) -> 0.201
A62: 2015-03-26 | B62: =ROUND(-0.058,10) -> -0.058 | C62: =ROUND(-0.039,10) -> -0.039 | D62: =ROUND(-0.034,10) -> -0.034 | E62: =ROUND(-0.012,10) -> -0.012 | F62: =ROUND(0.006,10) -> 0.006 | G62: =ROUND(0.021,10) -> 0.021 | H62: =ROUND(0.089,10) -> 0.089 | I62: =ROUND(0.138,10) -> 0.138 | J62: =ROUND(0.201,10) -> 0.201
A63: 2015-03-27 | B63: =ROUND(-0.053,10) -> -0.053 | C63: =ROUND(-0.036,10) -> -0.036 | D63: =ROUND(-0.035,10) -> -0.035 | E63: =ROUND(-0.012,10) -> -0.012 | F63: =ROUND(0.006,10) -> 0.006 | G63: =ROUND(0.021,10) -> 0.021 | H63: =ROUND(0.088,10) -> 0.088 | I63: =ROUND(0.138,10) -> 0.138 | J63: =ROUND(0.199,10) -> 0.199
A64: 2015-03-30 | B64: =ROUND(-0.05,10) -> -0.05 | C64: =ROUND(-0.048,10) -> -0.048 | D64: =ROUND(-0.042,10) -> -0.042 | E64: =ROUND(-0.014,10) -> -0.014 | F64: =ROUND(0.005,10) -> 0.005 | G64: =ROUND(0.018,10) -> 0.018 | H64: =ROUND(0.087,10) -> 0.087 | I64: =ROUND(0.138,10) -> 0.138 | J64: =ROUND(0.198,10) -> 0.198
A65: 2015-03-31 | B65: =ROUND(0.05,10) -> 0.05 | C65: =ROUND(-0.051,10) -> -0.051 | D65: =ROUND(-0.044,10) -> -0.044 | E65: =ROUND(-0.015,10) -> -0.015 | F65: =ROUND(0.004,10) -> 0.004 | G65: =ROUND(0.019,10) -> 0.019 | H65: =ROUND(0.087,10) -> 0.087 | I65: =ROUND(0.138,10) -> 0.138 | J65: =ROUND(0.198,10) -> 0.198
A66: 2015-04-01 | B66: =ROUND(-0.07,10) -> -0.07 | C66: =ROUND(-0.054,10) -> -0.054 | D66: =ROUND(-0.047,10) -> -0.047 | E66: =ROUND(-0.017,10) -> -0.017 | F66: =ROUND(0.002,10) -> 0.002 | G66: =ROUND(0.018,10) -> 0.018 | H66: =ROUND(0.088,10) -> 0.088 | I66: =ROUND(0.136,10) -> 0.136 | J66: =ROUND(0.196,10) -> 0.196
A67: 2015-04-02 | B67: =ROUND(-0.079,10) -> -0.079 | C67: =ROUND(-0.062,10) -> -0.062 | D67: =ROUND(-0.051,10) -> -0.051 | E67: =ROUND(-0.019,10) -> -0.019 | F67: =ROUND(0,10) -> 0 | G67: =ROUND(0.018,10) -> 0.018 | H67: =ROUND(0.086,10) -> 0.086 | I67: =ROUND(0.135,10) -> 0.135 | J67: =ROUND(0.195,10) -> 0.195
A68: 2015-04-07 | B68: =ROUND(-0.08,10) -> -0.08 | C68: =ROUND(-0.064,10) -> -0.064 | D68: =ROUND(-0.054,10) -> -0.054 | E68: =ROUND(-0.021,10) -> -0.021 | F68: =ROUND(-0.002,10) -> -0.002 | G68: =ROUND(0.016,10) -> 0.016 | H68: =ROUND(0.085,10) -> 0.085 | I68: =ROUND(0.134,10) -> 0.134 | J68: =ROUND(0.195,10) -> 0.195
A69: 2015-04-08 | B69: =ROUND(-0.074,10) -> -0.074 | C69: =ROUND(-0.064,10) -> -0.064 | D69: =ROUND(-0.056,10) -> -0.056 | E69: =ROUND(-0.021,10) -> -0.021 | F69: =ROUND(-0.003,10) -> -0.003 | G69: =ROUND(0.014,10) -> 0.014 | H69: =ROUND(0.081,10) -> 0.081 | I69: =ROUND(0.131,10) -> 0.131 | J69: =ROUND(0.191,10) -> 0.191
A70: 2015-04-09 | B70: =ROUND(-0.056,10) -> -0.056 | C70: =ROUND(-0.069,10) -> -0.069 | D70: =ROUND(-0.06,10) -> -0.06 | E70: =ROUND(-0.022,10) -> -0.022 | F70: =ROUND(-0.004,10) -> -0.004 | G70: =ROUND(0.012,10) -> 0.012 | H70: =ROUND(0.081,10) -> 0.081 | I70: =ROUND(0.13,10) -> 0.13 | J70: =ROUND(0.19,10) -> 0.19
A71: 2015-04-10 | B71: =ROUND(-0.07,10) -> -0.07 | C71: =ROUND(-0.072,10) -> -0.072 | D71: =ROUND(-0.062,10) -> -0.062 | E71: =ROUND(-0.022,10) -> -0.022 | F71: =ROUND(-0.002,10) -> -0.002 | G71: =ROUND(0.012,10) -> 0.012 | H71: =ROUND(0.079,10) -> 0.079 | I71: =ROUND(0.129,10) -> 0.129 | J71: =ROUND(0.188,10) -> 0.188
A72: 2015-04-13 | B72: =ROUND(-0.072,10) -> -0.072 | C72: =ROUND(-0.075,10) -> -0.075 | D72: =ROUND(-0.064,10) -> -0.064 | E72: =ROUND(-0.024,10) -> -0.024 | F72: =ROUND(-0.004,10) -> -0.004 | G72: =ROUND(0.011,10) -> 0.011 | H72: =ROUND(0.078,10) -> 0.078 | I72: =ROUND(0.127,10) -> 0.127 | J72: =ROUND(0.187,10) -> 0.187
A73: 2015-04-14 | B73: =ROUND(-0.089,10) -> -0.089 | C73: =ROUND(-0.081,10) -> -0.081 | D73: =ROUND(-0.07,10) -> -0.07 | E73: =ROUND(-0.025,10) -> -0.025 | F73: =ROUND(-0.007,10) -> -0.007 | G73: =ROUND(0.008,10) -> 0.008 | H73: =ROUND(0.076,10) -> 0.076 | I73: =ROUND(0.124,10) -> 0.124 | J73: =ROUND(0.183,10) -> 0.183
A74: 2015-04-15 | B74: =ROUND(-0.074,10) -> -0.074 | C74: =ROUND(-0.088,10) -> -0.088 | D74: =ROUND(-0.07,10) -> -0.07 | E74: =ROUND(-0.029,10) -> -0.029 | F74: =ROUND(-0.011,10) -> -0.011 | G74: =ROUND(0.004,10) -> 0.004 | H74: =ROUND(0.072,10) -> 0.072 | I74: =ROUND(0.121,10) -> 0.121 | J74: =ROUND(0.18,10) -> 0.18
A75: 2015-04-16 | B75: =ROUND(-0.093,10) -> -0.093 | C75: =ROUND(-0.092,10) -> -0.092 | D75: =ROUND(-0.069,10) -> -0.069 | E75: =ROUND(-0.032,10) -> -0.032 | F75: =ROUND(-0.014,10) -> -0.014 | G75: =ROUND(0.002,10) -> 0.002 | H75: =ROUND(0.07,10) -> 0.07 | I75: =ROUND(0.119,10) -> 0.119 | J75: =ROUND(0.178,10) -> 0.178
A76: 2015-04-17 | B76: =ROUND(-0.073,10) -> -0.073 | C76: =ROUND(-0.093,10) -> -0.093 | D76: =ROUND(-0.069,10) -> -0.069 | E76: =ROUND(-0.033,10) -> -0.033 | F76: =ROUND(-0.016,10) -> -0.016 | G76: =ROUND(0.001,10) -> 0.001 | H76: =ROUND(0.068,10) -> 0.068 | I76: =ROUND(0.118,10) -> 0.118 | J76: =ROUND(0.177,10) -> 0.177
A77: 2015-04-20 | B77: =ROUND(-0.079,10) -> -0.079 | C77: =ROUND(-0.091,10) -> -0.091 | D77: =ROUND(-0.069,10) -> -0.069 | E77: =ROUND(-0.032,10) -> -0.032 | F77: =ROUND(-0.016,10) -> -0.016 | G77: =ROUND(0.001,10) -> 0.001 | H77: =ROUND(0.069,10) -> 0.069 | I77: =ROUND(0.118,10) -> 0.118 | J77: =ROUND(0.176,10) -> 0.176
A78: 2015-04-21 | B78: =ROUND(-0.084,10) -> -0.084 | C78: =ROUND(-0.091,10) -> -0.091 | D78: =ROUND(-0.068,10) -> -0.068 | E78: =ROUND(-0.034,10) -> -0.034 | F78: =ROUND(-0.018,10) -> -0.018 | G78: =ROUND(-0.001,10) -> -0.001 | H78: =ROUND(0.069,10) -> 0.069 | I78: =ROUND(0.119,10) -> 0.119 | J78: =ROUND(0.176,10) -> 0.176
A79: 2015-04-22 | B79: =ROUND(-0.077,10) -> -0.077 | C79: =ROUND(-0.085,10) -> -0.085 | D79: =ROUND(-0.069,10) -> -0.069 | E79: -0.034 | F79: =ROUND(-0.018,10) -> -0.018 | G79: =ROUND(-0.002,10) -> -0.002 | H79: =ROUND(0.068,10) -> 0.068 | I79: =ROUND(0.118,10) -> 0.118 | J79: =ROUND(0.175,10) -> 0.175
A80: 2015-04-23 | B80: =ROUND(-0.08,10) -> -0.08 | C80: =ROUND(-0.082,10) -> -0.082 | D80: =ROUND(-0.071,10) -> -0.071 | E80: -0.034 | F80: =ROUND(-0.018,10) -> -0.018 | G80: =ROUND(-0.002,10) -> -0.002 | H80: =ROUND(0.066,10) -> 0.066 | I80: =ROUND(0.116,10) -> 0.116 | J80: =ROUND(0.173,10) -> 0.173
A81: 2015-04-24 | B81: =ROUND(-0.081,10) -> -0.081 | C81: =ROUND(-0.082,10) -> -0.082 | D81: =ROUND(-0.072,10) -> -0.072 | E81: -0.034 | F81: =ROUND(-0.016,10) -> -0.016 | G81: =ROUND(-0.001,10) -> -0.001 | H81: =ROUND(0.066,10) -> 0.066 | I81: =ROUND(0.115,10) -> 0.115 | J81: =ROUND(0.172,10) -> 0.172
A82: 2015-04-27 | B82: =ROUND(-0.081,10) -> -0.081 | C82: =ROUND(-0.082,10) -> -0.082 | D82: =ROUND(-0.074,10) -> -0.074 | E82: -0.034 | F82: =ROUND(-0.017,10) -> -0.017 | G82: =ROUND(-0.002,10) -> -0.002 | H82: =ROUND(0.067,10) -> 0.067 | I82: =ROUND(0.114,10) -> 0.114 | J82: =ROUND(0.171,10) -> 0.171
A83: 2015-04-28 | B83: =ROUND(-0.079,10) -> -0.079 | C83: =ROUND(-0.08,10) -> -0.08 | D83: =ROUND(-0.072,10) -> -0.072 | E83: -0.034 | F83: =ROUND(-0.019,10) -> -0.019 | G83: =ROUND(-0.005,10) -> -0.005 | H83: =ROUND(0.062,10) -> 0.062 | I83: =ROUND(0.11,10) -> 0.11 | J83: =ROUND(0.168,10) -> 0.168
A84: 2015-04-29 | B84: =ROUND(-0.072,10) -> -0.072 | C84: =ROUND(-0.089,10) -> -0.089 | D84: =ROUND(-0.079,10) -> -0.079 | E84: =ROUND(-0.038,10) -> -0.038 | F84: =ROUND(-0.022,10) -> -0.022 | G84: =ROUND(-0.005,10) -> -0.005 | H84: =ROUND(0.061,10) -> 0.061 | I84: =ROUND(0.11,10) -> 0.11 | J84: =ROUND(0.167,10) -> 0.167
A85: 2015-04-30 | B85: =ROUND(-0.027,10) -> -0.027 | C85: =ROUND(-0.093,10) -> -0.093 | D85: =ROUND(-0.081,10) -> -0.081 | E85: =ROUND(-0.04,10) -> -0.04 | F85: =ROUND(-0.022,10) -> -0.022 | G85: =ROUND(-0.005,10) -> -0.005 | H85: =ROUND(0.064,10) -> 0.064 | I85: =ROUND(0.111,10) -> 0.111 | J85: =ROUND(0.171,10) -> 0.171
A86: 2015-05-04 | B86: =ROUND(-0.084,10) -> -0.084 | C86: =ROUND(-0.095,10) -> -0.095 | D86: =ROUND(-0.083,10) -> -0.083 | E86: =ROUND(-0.042,10) -> -0.042 | F86: =ROUND(-0.023,10) -> -0.023 | G86: =ROUND(-0.007,10) -> -0.007 | H86: =ROUND(0.064,10) -> 0.064 | I86: =ROUND(0.109,10) -> 0.109 | J86: =ROUND(0.17,10) -> 0.17
A87: 2015-05-05 | B87: =ROUND(-0.085,10) -> -0.085 | C87: =ROUND(-0.098,10) -> -0.098 | D87: =ROUND(-0.087,10) -> -0.087 | E87: =ROUND(-0.043,10) -> -0.043 | F87: =ROUND(-0.024,10) -> -0.024 | G87: =ROUND(-0.008,10) -> -0.008 | H87: =ROUND(0.061,10) -> 0.061 | I87: =ROUND(0.108,10) -> 0.108 | J87: =ROUND(0.167,10) -> 0.167
A88: 2015-05-06 | B88: =ROUND(-0.088,10) -> -0.088 | C88: =ROUND(-0.102,10) -> -0.102 | D88: =ROUND(-0.091,10) -> -0.091 | E88: =ROUND(-0.043,10) -> -0.043 | F88: =ROUND(-0.024,10) -> -0.024 | G88: =ROUND(-0.008,10) -> -0.008 | H88: =ROUND(0.062,10) -> 0.062 | I88: =ROUND(0.109,10) -> 0.109 | J88: =ROUND(0.169,10) -> 0.169
A89: 2015-05-07 | B89: =ROUND(-0.089,10) -> -0.089 | C89: =ROUND(-0.105,10) -> -0.105 | D89: =ROUND(-0.091,10) -> -0.091 | E89: =ROUND(-0.043,10) -> -0.043 | F89: =ROUND(-0.024,10) -> -0.024 | G89: =ROUND(-0.009,10) -> -0.009 | H89: =ROUND(0.061,10) -> 0.061 | I89: =ROUND(0.107,10) -> 0.107 | J89: =ROUND(0.169,10) -> 0.169
A90: 2015-05-08 | B90: =ROUND(-0.087,10) -> -0.087 | C90: =ROUND(-0.107,10) -> -0.107 | D90: =ROUND(-0.091,10) -> -0.091 | E90: =ROUND(-0.044,10) -> -0.044 | F90: =ROUND(-0.025,10) -> -0.025 | G90: -0.009 | H90: =ROUND(0.061,10) -> 0.061 | I90: =ROUND(0.108,10) -> 0.108 | J90: =ROUND(0.169,10) -> 0.169
A91: 2015-05-11 | B91: =ROUND(-0.089,10) -> -0.089 | C91: =ROUND(-0.108,10) -> -0.108 | D91: =ROUND(-0.093,10) -> -0.093 | E91: =ROUND(-0.045,10) -> -0.045 | F91: =ROUND(-0.026,10) -> -0.026 | G91: -0.009 | H91: =ROUND(0.061,10) -> 0.061 | I91: =ROUND(0.108,10) -> 0.108 | J91: =ROUND(0.168,10) -> 0.168
A92: 2015-05-12 | B92: =ROUND(-0.091,10) -> -0.091 | C92: =ROUND(-0.109,10) -> -0.109 | D92: =ROUND(-0.095,10) -> -0.095 | E92: =ROUND(-0.048,10) -> -0.048 | F92: =ROUND(-0.028,10) -> -0.028 | G92: -0.009 | H92: =ROUND(0.061,10) -> 0.061 | I92: =ROUND(0.108,10) -> 0.108 | J92: =ROUND(0.169,10) -> 0.169
A93: 2015-05-13 | B93: =ROUND(-0.137,10) -> -0.137 | C93: =ROUND(-0.111,10) -> -0.111 | D93: =ROUND(-0.097,10) -> -0.097 | E93: =ROUND(-0.048,10) -> -0.048 | F93: =ROUND(-0.028,10) -> -0.028 | G93: -0.009 | H93: =ROUND(0.06,10) -> 0.06 | I93: =ROUND(0.108,10) -> 0.108 | J93: =ROUND(0.169,10) -> 0.169
A94: 2015-05-14 | B94: =ROUND(-0.143,10) -> -0.143 | C94: =ROUND(-0.115,10) -> -0.115 | D94: =ROUND(-0.094,10) -> -0.094 | E94: =ROUND(-0.049,10) -> -0.049 | F94: =ROUND(-0.029,10) -> -0.029 | G94: -0.009 | H94: =ROUND(0.059,10) -> 0.059 | I94: =ROUND(0.106,10) -> 0.106 | J94: =ROUND(0.168,10) -> 0.168
A95: 2015-05-15 | B95: =ROUND(-0.11,10) -> -0.11 | C95: =ROUND(-0.12,10) -> -0.12 | D95: =ROUND(-0.096,10) -> -0.096 | E95: =ROUND(-0.05,10) -> -0.05 | F95: =ROUND(-0.028,10) -> -0.028 | G95: =ROUND(-0.01,10) -> -0.01 | H95: =ROUND(0.058,10) -> 0.058 | I95: =ROUND(0.106,10) -> 0.106 | J95: =ROUND(0.167,10) -> 0.167
A96: 2015-05-18 | B96: =ROUND(-0.105,10) -> -0.105 | C96: =ROUND(-0.122,10) -> -0.122 | D96: =ROUND(-0.096,10) -> -0.096 | E96: =ROUND(-0.051,10) -> -0.051 | F96: =ROUND(-0.029,10) -> -0.029 | G96: =ROUND(-0.011,10) -> -0.011 | H96: =ROUND(0.056,10) -> 0.056 | I96: =ROUND(0.105,10) -> 0.105 | J96: =ROUND(0.168,10) -> 0.168
A97: 2015-05-19 | B97: =ROUND(-0.106,10) -> -0.106 | C97: =ROUND(-0.119,10) -> -0.119 | D97: =ROUND(-0.098,10) -> -0.098 | E97: =ROUND(-0.052,10) -> -0.052 | F97: =ROUND(-0.031,10) -> -0.031 | G97: =ROUND(-0.012,10) -> -0.012 | H97: =ROUND(0.057,10) -> 0.057 | I97: =ROUND(0.103,10) -> 0.103 | J97: =ROUND(0.164,10) -> 0.164
A98: 2015-05-20 | B98: =ROUND(-0.105,10) -> -0.105 | C98: =ROUND(-0.119,10) -> -0.119 | D98: =ROUND(-0.098,10) -> -0.098 | E98: =ROUND(-0.052,10) -> -0.052 | F98: =ROUND(-0.031,10) -> -0.031 | G98: =ROUND(-0.012,10) -> -0.012 | H98: =ROUND(0.055,10) -> 0.055 | I98: =ROUND(0.101,10) -> 0.101 | J98: =ROUND(0.162,10) -> 0.162
A99: 2015-05-21 | B99: =ROUND(-0.106,10) -> -0.106 | C99: =ROUND(-0.109,10) -> -0.109 | D99: =ROUND(-0.098,10) -> -0.098 | E99: =ROUND(-0.052,10) -> -0.052 | F99: =ROUND(-0.031,10) -> -0.031 | G99: =ROUND(-0.012,10) -> -0.012 | H99: =ROUND(0.054,10) -> 0.054 | I99: =ROUND(0.101,10) -> 0.101 | J99: =ROUND(0.162,10) -> 0.162
A100: 2015-05-22 | B100: =ROUND(-0.14,10) -> -0.14 | C100: =ROUND(-0.108,10) -> -0.108 | D100: =ROUND(-0.098,10) -> -0.098 | E100: =ROUND(-0.052,10) -> -0.052 | F100: =ROUND(-0.031,10) -> -0.031 | G100: =ROUND(-0.012,10) -> -0.012 | H100: =ROUND(0.054,10) -> 0.054 | I100: =ROUND(0.102,10) -> 0.102 | J100: =ROUND(0.162,10) -> 0.162
A101: 2015-05-25 | B101: =ROUND(-0.143,10) -> -0.143 | C101: =ROUND(-0.11,10) -> -0.11 | D101: =ROUND(-0.1,10) -> -0.1 | E101: =ROUND(-0.053,10) -> -0.053 | F101: =ROUND(-0.031,10) -> -0.031 | G101: =ROUND(-0.012,10) -> -0.012 | H101: =ROUND(0.054,10) -> 0.054 | I101: =ROUND(0.102,10) -> 0.102 | J101: =ROUND(0.163,10) -> 0.163
A102: 2015-05-26 | B102: =ROUND(-0.109,10) -> -0.109 | C102: =ROUND(-0.111,10) -> -0.111 | D102: =ROUND(-0.1,10) -> -0.1 | E102: =ROUND(-0.054,10) -> -0.054 | F102: =ROUND(-0.032,10) -> -0.032 | G102: =ROUND(-0.013,10) -> -0.013 | H102: =ROUND(0.052,10) -> 0.052 | I102: =ROUND(0.101,10) -> 0.101 | J102: =ROUND(0.161,10) -> 0.161
A103: 2015-05-27 | B103: =ROUND(-0.114,10) -> -0.114 | C103: =ROUND(-0.109,10) -> -0.109 | D103: =ROUND(-0.101,10) -> -0.101 | E103: =ROUND(-0.054,10) -> -0.054 | F103: =ROUND(-0.032,10) -> -0.032 | G103: =ROUND(-0.013,10) -> -0.013 | H103: =ROUND(0.05,10) -> 0.05 | I103: =ROUND(0.1,10) -> 0.1 | J103: =ROUND(0.16,10) -> 0.16
A104: 2015-05-28 | B104: =ROUND(-0.104,10) -> -0.104 | C104: =ROUND(-0.12,10) -> -0.12 | D104: =ROUND(-0.108,10) -> -0.108 | E104: =ROUND(-0.058,10) -> -0.058 | F104: =ROUND(-0.032,10) -> -0.032 | G104: =ROUND(-0.013,10) -> -0.013 | H104: =ROUND(0.049,10) -> 0.049 | I104: =ROUND(0.098,10) -> 0.098 | J104: =ROUND(0.159,10) -> 0.159
A105: 2015-05-29 | B105: =ROUND(-0.08,10) -> -0.08 | C105: =ROUND(-0.122,10) -> -0.122 | D105: =ROUND(-0.109,10) -> -0.109 | E105: =ROUND(-0.059,10) -> -0.059 | F105: =ROUND(-0.032,10) -> -0.032 | G105: =ROUND(-0.012,10) -> -0.012 | H105: =ROUND(0.049,10) -> 0.049 | I105: =ROUND(0.099,10) -> 0.099 | J105: =ROUND(0.16,10) -> 0.16
A106: 2015-06-01 | B106: =ROUND(-0.106,10) -> -0.106 | C106: =ROUND(-0.122,10) -> -0.122 | D106: =ROUND(-0.108,10) -> -0.108 | E106: =ROUND(-0.057,10) -> -0.057 | F106: =ROUND(-0.032,10) -> -0.032 | G106: =ROUND(-0.013,10) -> -0.013 | H106: =ROUND(0.049,10) -> 0.049 | I106: =ROUND(0.099,10) -> 0.099 | J106: =ROUND(0.161,10) -> 0.161
A107: 2015-06-02 | B107: =ROUND(-0.122,10) -> -0.122 | C107: =ROUND(-0.124,10) -> -0.124 | D107: =ROUND(-0.109,10) -> -0.109 | E107: =ROUND(-0.06,10) -> -0.06 | F107: =ROUND(-0.033,10) -> -0.033 | G107: =ROUND(-0.013,10) -> -0.013 | H107: =ROUND(0.048,10) -> 0.048 | I107: =ROUND(0.098,10) -> 0.098 | J107: =ROUND(0.158,10) -> 0.158
A108: 2015-06-03 | B108: =ROUND(-0.143,10) -> -0.143 | C108: =ROUND(-0.124,10) -> -0.124 | D108: =ROUND(-0.109,10) -> -0.109 | E108: =ROUND(-0.061,10) -> -0.061 | F108: =ROUND(-0.033,10) -> -0.033 | G108: =ROUND(-0.014,10) -> -0.014 | H108: =ROUND(0.048,10) -> 0.048 | I108: =ROUND(0.098,10) -> 0.098 | J108: =ROUND(0.16,10) -> 0.16
A109: 2015-06-04 | B109: =ROUND(-0.138,10) -> -0.138 | C109: =ROUND(-0.124,10) -> -0.124 | D109: =ROUND(-0.109,10) -> -0.109 | E109: =ROUND(-0.062,10) -> -0.062 | F109: =ROUND(-0.034,10) -> -0.034 | G109: =ROUND(-0.013,10) -> -0.013 | H109: =ROUND(0.049,10) -> 0.049 | I109: =ROUND(0.099,10) -> 0.099 | J109: =ROUND(0.162,10) -> 0.162
A110: 2015-06-05 | B110: =ROUND(-0.115,10) -> -0.115 | C110: =ROUND(-0.124,10) -> -0.124 | D110: =ROUND(-0.109,10) -> -0.109 | E110: =ROUND(-0.063,10) -> -0.063 | F110: =ROUND(-0.034,10) -> -0.034 | G110: =ROUND(-0.013,10) -> -0.013 | H110: =ROUND(0.05,10) -> 0.05 | I110: =ROUND(0.1,10) -> 0.1 | J110: =ROUND(0.161,10) -> 0.161
A111: 2015-06-08 | B111: =ROUND(-0.127,10) -> -0.127 | C111: =ROUND(-0.126,10) -> -0.126 | D111: =ROUND(-0.11,10) -> -0.11 | E111: =ROUND(-0.063,10) -> -0.063 | F111: =ROUND(-0.034,10) -> -0.034 | G111: =ROUND(-0.013,10) -> -0.013 | H111: =ROUND(0.049,10) -> 0.049 | I111: =ROUND(0.1,10) -> 0.1 | J111: =ROUND(0.163,10) -> 0.163
A112: 2015-06-09 | B112: =ROUND(-0.126,10) -> -0.126 | C112: =ROUND(-0.123,10) -> -0.123 | D112: =ROUND(-0.11,10) -> -0.11 | E112: =ROUND(-0.063,10) -> -0.063 | F112: =ROUND(-0.034,10) -> -0.034 | G112: =ROUND(-0.013,10) -> -0.013 | H112: =ROUND(0.049,10) -> 0.049 | I112: =ROUND(0.099,10) -> 0.099 | J112: =ROUND(0.163,10) -> 0.163
A113: 2015-06-10 | B113: =ROUND(-0.117,10) -> -0.117 | C113: =ROUND(-0.125,10) -> -0.125 | D113: =ROUND(-0.111,10) -> -0.111 | E113: =ROUND(-0.063,10) -> -0.063 | F113: =ROUND(-0.034,10) -> -0.034 | G113: =ROUND(-0.014,10) -> -0.014 | H113: =ROUND(0.049,10) -> 0.049 | I113: =ROUND(0.101,10) -> 0.101 | J113: =ROUND(0.166,10) -> 0.166
A114: 2015-06-11 | B114: =ROUND(-0.12,10) -> -0.12 | C114: =ROUND(-0.128,10) -> -0.128 | D114: =ROUND(-0.111,10) -> -0.111 | E114: =ROUND(-0.062,10) -> -0.062 | F114: =ROUND(-0.033,10) -> -0.033 | G114: -0.014 | H114: =ROUND(0.049,10) -> 0.049 | I114: =ROUND(0.099,10) -> 0.099 | J114: =ROUND(0.161,10) -> 0.161
A115: 2015-06-12 | B115: =ROUND(-0.125,10) -> -0.125 | C115: =ROUND(-0.129,10) -> -0.129 | D115: =ROUND(-0.113,10) -> -0.113 | E115: =ROUND(-0.064,10) -> -0.064 | F115: =ROUND(-0.036,10) -> -0.036 | G115: -0.014 | H115: =ROUND(0.05,10) -> 0.05 | I115: =ROUND(0.1,10) -> 0.1 | J115: =ROUND(0.163,10) -> 0.163
A116: 2015-06-15 | B116: =ROUND(-0.119,10) -> -0.119 | C116: =ROUND(-0.129,10) -> -0.129 | D116: =ROUND(-0.108,10) -> -0.108 | E116: =ROUND(-0.064,10) -> -0.064 | F116: =ROUND(-0.037,10) -> -0.037 | G116: -0.014 | H116: =ROUND(0.049,10) -> 0.049 | I116: =ROUND(0.101,10) -> 0.101 | J116: =ROUND(0.164,10) -> 0.164
A117: 2015-06-16 | B117: =ROUND(-0.125,10) -> -0.125 | C117: =ROUND(-0.13,10) -> -0.13 | D117: =ROUND(-0.109,10) -> -0.109 | E117: =ROUND(-0.064,10) -> -0.064 | F117: =ROUND(-0.038,10) -> -0.038 | G117: -0.014 | H117: =ROUND(0.051,10) -> 0.051 | I117: =ROUND(0.102,10) -> 0.102 | J117: =ROUND(0.166,10) -> 0.166
A118: 2015-06-17 | B118: =ROUND(-0.11,10) -> -0.11 | C118: =ROUND(-0.131,10) -> -0.131 | D118: =ROUND(-0.109,10) -> -0.109 | E118: =ROUND(-0.064,10) -> -0.064 | F118: =ROUND(-0.038,10) -> -0.038 | G118: -0.014 | H118: =ROUND(0.049,10) -> 0.049 | I118: =ROUND(0.1,10) -> 0.1 | J118: =ROUND(0.166,10) -> 0.166
A119: 2015-06-18 | B119: =ROUND(-0.118,10) -> -0.118 | C119: =ROUND(-0.131,10) -> -0.131 | D119: =ROUND(-0.109,10) -> -0.109 | E119: =ROUND(-0.063,10) -> -0.063 | F119: =ROUND(-0.039,10) -> -0.039 | G119: -0.014 | H119: =ROUND(0.049,10) -> 0.049 | I119: =ROUND(0.1,10) -> 0.1 | J119: =ROUND(0.166,10) -> 0.166
A120: 2015-06-19 | B120: =ROUND(-0.12,10) -> -0.12 | C120: =ROUND(-0.131,10) -> -0.131 | D120: =ROUND(-0.108,10) -> -0.108 | E120: =ROUND(-0.064,10) -> -0.064 | F120: =ROUND(-0.039,10) -> -0.039 | G120: -0.014 | H120: =ROUND(0.05,10) -> 0.05 | I120: =ROUND(0.101,10) -> 0.101 | J120: =ROUND(0.166,10) -> 0.166
A121: 2015-06-22 | B121: =ROUND(-0.127,10) -> -0.127 | C121: =ROUND(-0.119,10) -> -0.119 | D121: =ROUND(-0.106,10) -> -0.106 | E121: =ROUND(-0.065,10) -> -0.065 | F121: =ROUND(-0.039,10) -> -0.039 | G121: -0.014 | H121: =ROUND(0.048,10) -> 0.048 | I121: =ROUND(0.099,10) -> 0.099 | J121: =ROUND(0.164,10) -> 0.164
A122: 2015-06-23 | B122: =ROUND(-0.121,10) -> -0.121 | C122: =ROUND(-0.119,10) -> -0.119 | D122: =ROUND(-0.109,10) -> -0.109 | E122: =ROUND(-0.066,10) -> -0.066 | F122: =ROUND(-0.039,10) -> -0.039 | G122: -0.014 | H122: =ROUND(0.048,10) -> 0.048 | I122: =ROUND(0.099,10) -> 0.099 | J122: =ROUND(0.163,10) -> 0.163
A123: 2015-06-24 | B123: =ROUND(-0.111,10) -> -0.111 | C123: =ROUND(-0.12,10) -> -0.12 | D123: =ROUND(-0.109,10) -> -0.109 | E123: =ROUND(-0.066,10) -> -0.066 | F123: =ROUND(-0.038,10) -> -0.038 | G123: -0.014 | H123: =ROUND(0.049,10) -> 0.049 | I123: =ROUND(0.099,10) -> 0.099 | J123: =ROUND(0.163,10) -> 0.163
A124: 2015-06-25 | B124: =ROUND(-0.116,10) -> -0.116 | C124: =ROUND(-0.119,10) -> -0.119 | D124: =ROUND(-0.109,10) -> -0.109 | E124: =ROUND(-0.066,10) -> -0.066 | F124: -0.038 | G124: =ROUND(-0.015,10) -> -0.015 | H124: =ROUND(0.049,10) -> 0.049 | I124: =ROUND(0.1,10) -> 0.1 | J124: =ROUND(0.162,10) -> 0.162
A125: 2015-06-26 | B125: =ROUND(-0.123,10) -> -0.123 | C125: =ROUND(-0.118,10) -> -0.118 | D125: =ROUND(-0.111,10) -> -0.111 | E125: =ROUND(-0.066,10) -> -0.066 | F125: -0.038 | G125: =ROUND(-0.015,10) -> -0.015 | H125: =ROUND(0.05,10) -> 0.05 | I125: =ROUND(0.1,10) -> 0.1 | J125: =ROUND(0.162,10) -> 0.162
A126: 2015-06-29 | B126: =ROUND(-0.118,10) -> -0.118 | C126: =ROUND(-0.12,10) -> -0.12 | D126: =ROUND(-0.111,10) -> -0.111 | E126: =ROUND(-0.064,10) -> -0.064 | F126: -0.038 | G126: =ROUND(-0.016,10) -> -0.016 | H126: =ROUND(0.05,10) -> 0.05 | I126: =ROUND(0.1,10) -> 0.1 | J126: =ROUND(0.163,10) -> 0.163
A127: 2015-06-30 | B127: =ROUND(-0.06,10) -> -0.06 | C127: =ROUND(-0.12,10) -> -0.12 | D127: =ROUND(-0.11,10) -> -0.11 | E127: =ROUND(-0.064,10) -> -0.064 | F127: -0.038 | G127: =ROUND(-0.014,10) -> -0.014 | H127: =ROUND(0.05,10) -> 0.05 | I127: =ROUND(0.1,10) -> 0.1 | J127: =ROUND(0.164,10) -> 0.164
A128: 2015-07-01 | B128: =ROUND(-0.123,10) -> -0.123 | C128: =ROUND(-0.123,10) -> -0.123 | D128: =ROUND(-0.112,10) -> -0.112 | E128: =ROUND(-0.064,10) -> -0.064 | F128: -0.038 | G128: =ROUND(-0.014,10) -> -0.014 | H128: =ROUND(0.049,10) -> 0.049 | I128: =ROUND(0.101,10) -> 0.101 | J128: =ROUND(0.164,10) -> 0.164
A129: 2015-07-02 | B129: =ROUND(-0.121,10) -> -0.121 | C129: =ROUND(-0.124,10) -> -0.124 | D129: =ROUND(-0.113,10) -> -0.113 | E129: =ROUND(-0.066,10) -> -0.066 | F129: =ROUND(-0.039,10) -> -0.039 | G129: =ROUND(-0.015,10) -> -0.015 | H129: =ROUND(0.048,10) -> 0.048 | I129: =ROUND(0.099,10) -> 0.099 | J129: =ROUND(0.163,10) -> 0.163
A130: 2015-07-03 | B130: =ROUND(-0.116,10) -> -0.116 | C130: =ROUND(-0.127,10) -> -0.127 | D130: =ROUND(-0.114,10) -> -0.114 | E130: =ROUND(-0.067,10) -> -0.067 | F130: =ROUND(-0.039,10) -> -0.039 | G130: =ROUND(-0.015,10) -> -0.015 | H130: =ROUND(0.049,10) -> 0.049 | I130: =ROUND(0.099,10) -> 0.099 | J130: =ROUND(0.163,10) -> 0.163
A131: 2015-07-06 | B131: =ROUND(-0.122,10) -> -0.122 | C131: =ROUND(-0.129,10) -> -0.129 | D131: =ROUND(-0.116,10) -> -0.116 | E131: =ROUND(-0.068,10) -> -0.068 | F131: =ROUND(-0.038,10) -> -0.038 | G131: =ROUND(-0.016,10) -> -0.016 | H131: 0.049 | I131: =ROUND(0.101,10) -> 0.101 | J131: =ROUND(0.164,10) -> 0.164
A132: 2015-07-07 | B132: =ROUND(-0.12,10) -> -0.12 | C132: =ROUND(-0.129,10) -> -0.129 | D132: =ROUND(-0.118,10) -> -0.118 | E132: =ROUND(-0.069,10) -> -0.069 | F132: =ROUND(-0.039,10) -> -0.039 | G132: =ROUND(-0.018,10) -> -0.018 | H132: 0.049 | I132: =ROUND(0.101,10) -> 0.101 | J132: =ROUND(0.164,10) -> 0.164
A133: 2015-07-08 | B133: =ROUND(-0.118,10) -> -0.118 | C133: =ROUND(-0.131,10) -> -0.131 | D133: -0.118 | E133: =ROUND(-0.071,10) -> -0.071 | F133: =ROUND(-0.038,10) -> -0.038 | G133: =ROUND(-0.018,10) -> -0.018 | H133: 0.049 | I133: =ROUND(0.101,10) -> 0.101 | J133: =ROUND(0.164,10) -> 0.164
A134: 2015-07-09 | B134: =ROUND(-0.121,10) -> -0.121 | C134: =ROUND(-0.131,10) -> -0.131 | D134: -0.118 | E134: =ROUND(-0.071,10) -> -0.071 | F134: =ROUND(-0.039,10) -> -0.039 | G134: =ROUND(-0.018,10) -> -0.018 | H134: 0.049 | I134: =ROUND(0.1,10) -> 0.1 | J134: =ROUND(0.163,10) -> 0.163
A135: 2015-07-10 | B135: =ROUND(-0.12,10) -> -0.12 | C135: =ROUND(-0.133,10) -> -0.133 | D135: -0.118 | E135: =ROUND(-0.071,10) -> -0.071 | F135: =ROUND(-0.039,10) -> -0.039 | G135: =ROUND(-0.018,10) -> -0.018 | H135: 0.049 | I135: =ROUND(0.101,10) -> 0.101 | J135: =ROUND(0.164,10) -> 0.164
A136: 2015-07-13 | B136: =ROUND(-0.118,10) -> -0.118 | C136: =ROUND(-0.131,10) -> -0.131 | D136: -0.118 | E136: =ROUND(-0.071,10) -> -0.071 | F136: =ROUND(-0.038,10) -> -0.038 | G136: =ROUND(-0.019,10) -> -0.019 | H136: 0.049 | I136: =ROUND(0.102,10) -> 0.102 | J136: =ROUND(0.166,10) -> 0.166
A137: 2015-07-14 | B137: =ROUND(-0.112,10) -> -0.112 | C137: =ROUND(-0.131,10) -> -0.131 | D137: -0.118 | E137: =ROUND(-0.071,10) -> -0.071 | F137: =ROUND(-0.039,10) -> -0.039 | G137: -0.019 | H137: 0.049 | I137: =ROUND(0.101,10) -> 0.101 | J137: =ROUND(0.168,10) -> 0.168
A138: 2015-07-15 | B138: =ROUND(-0.122,10) -> -0.122 | C138: =ROUND(-0.132,10) -> -0.132 | D138: -0.118 | E138: =ROUND(-0.072,10) -> -0.072 | F138: =ROUND(-0.039,10) -> -0.039 | G138: -0.019 | H138: 0.049 | I138: =ROUND(0.101,10) -> 0.101 | J138: =ROUND(0.169,10) -> 0.169
A139: 2015-07-16 | B139: =ROUND(-0.124,10) -> -0.124 | C139: =ROUND(-0.132,10) -> -0.132 | D139: =ROUND(-0.116,10) -> -0.116 | E139: =ROUND(-0.071,10) -> -0.071 | F139: =ROUND(-0.039,10) -> -0.039 | G139: -0.019 | H139: 0.049 | I139: =ROUND(0.101,10) -> 0.101 | J139: =ROUND(0.169,10) -> 0.169
A140: 2015-07-17 | B140: =ROUND(-0.122,10) -> -0.122 | C140: =ROUND(-0.133,10) -> -0.133 | D140: =ROUND(-0.116,10) -> -0.116 | E140: =ROUND(-0.072,10) -> -0.072 | F140: =ROUND(-0.039,10) -> -0.039 | G140: -0.019 | H140: 0.049 | I140: =ROUND(0.101,10) -> 0.101 | J140: =ROUND(0.17,10) -> 0.17
A141: 2015-07-20 | B141: =ROUND(-0.116,10) -> -0.116 | C141: =ROUND(-0.134,10) -> -0.134 | D141: =ROUND(-0.116,10) -> -0.116 | E141: =ROUND(-0.073,10) -> -0.073 | F141: =ROUND(-0.038,10) -> -0.038 | G141: -0.019 | H141: 0.049 | I141: =ROUND(0.101,10) -> 0.101 | J141: =ROUND(0.171,10) -> 0.171
A142: 2015-07-21 | B142: =ROUND(-0.121,10) -> -0.121 | C142: =ROUND(-0.133,10) -> -0.133 | D142: =ROUND(-0.118,10) -> -0.118 | E142: =ROUND(-0.073,10) -> -0.073 | F142: =ROUND(-0.039,10) -> -0.039 | G142: -0.019 | H142: 0.049 | I142: =ROUND(0.1,10) -> 0.1 | J142: =ROUND(0.17,10) -> 0.17
A143: 2015-07-22 | B143: =ROUND(-0.12,10) -> -0.12 | C143: =ROUND(-0.133,10) -> -0.133 | D143: =ROUND(-0.117,10) -> -0.117 | E143: =ROUND(-0.073,10) -> -0.073 | F143: =ROUND(-0.039,10) -> -0.039 | G143: -0.019 | H143: 0.049 | I143: =ROUND(0.101,10) -> 0.101 | J143: =ROUND(0.171,10) -> 0.171
A144: 2015-07-23 | B144: =ROUND(-0.115,10) -> -0.115 | C144: =ROUND(-0.13,10) -> -0.13 | D144: =ROUND(-0.118,10) -> -0.118 | E144: =ROUND(-0.073,10) -> -0.073 | F144: =ROUND(-0.041,10) -> -0.041 | G144: -0.019 | H144: 0.049 | I144: =ROUND(0.1,10) -> 0.1 | J144: =ROUND(0.171,10) -> 0.171
A145: 2015-07-24 | B145: =ROUND(-0.114,10) -> -0.114 | C145: =ROUND(-0.129,10) -> -0.129 | D145: =ROUND(-0.116,10) -> -0.116 | E145: =ROUND(-0.074,10) -> -0.074 | F145: =ROUND(-0.042,10) -> -0.042 | G145: -0.019 | H145: =ROUND(0.048,10) -> 0.048 | I145: =ROUND(0.101,10) -> 0.101 | J145: =ROUND(0.17,10) -> 0.17
A146: 2015-07-27 | B146: =ROUND(-0.117,10) -> -0.117 | C146: =ROUND(-0.128,10) -> -0.128 | D146: =ROUND(-0.117,10) -> -0.117 | E146: =ROUND(-0.074,10) -> -0.074 | F146: =ROUND(-0.043,10) -> -0.043 | G146: =ROUND(-0.02,10) -> -0.02 | H146: =ROUND(0.049,10) -> 0.049 | I146: =ROUND(0.099,10) -> 0.099 | J146: =ROUND(0.169,10) -> 0.169
A147: 2015-07-28 | B147: =ROUND(-0.114,10) -> -0.114 | C147: =ROUND(-0.127,10) -> -0.127 | D147: =ROUND(-0.117,10) -> -0.117 | E147: =ROUND(-0.073,10) -> -0.073 | F147: =ROUND(-0.042,10) -> -0.042 | G147: =ROUND(-0.021,10) -> -0.021 | H147: =ROUND(0.048,10) -> 0.048 | I147: =ROUND(0.101,10) -> 0.101 | J147: =ROUND(0.169,10) -> 0.169
A148: 2015-07-29 | B148: =ROUND(-0.113,10) -> -0.113 | C148: =ROUND(-0.129,10) -> -0.129 | D148: =ROUND(-0.118,10) -> -0.118 | E148: =ROUND(-0.074,10) -> -0.074 | F148: =ROUND(-0.041,10) -> -0.041 | G148: =ROUND(-0.022,10) -> -0.022 | H148: =ROUND(0.048,10) -> 0.048 | I148: =ROUND(0.098,10) -> 0.098 | J148: =ROUND(0.169,10) -> 0.169
A149: 2015-07-30 | B149: =ROUND(-0.116,10) -> -0.116 | C149: =ROUND(-0.131,10) -> -0.131 | D149: =ROUND(-0.122,10) -> -0.122 | E149: =ROUND(-0.074,10) -> -0.074 | F149: =ROUND(-0.043,10) -> -0.043 | G149: =ROUND(-0.023,10) -> -0.023 | H149: =ROUND(0.048,10) -> 0.048 | I149: 0.098 | J149: =ROUND(0.169,10) -> 0.169
A150: 2015-07-31 | B150: =ROUND(-0.102,10) -> -0.102 | C150: =ROUND(-0.132,10) -> -0.132 | D150: =ROUND(-0.122,10) -> -0.122 | E150: =ROUND(-0.075,10) -> -0.075 | F150: =ROUND(-0.044,10) -> -0.044 | G150: =ROUND(-0.023,10) -> -0.023 | H150: =ROUND(0.048,10) -> 0.048 | I150: 0.098 | J150: =ROUND(0.167,10) -> 0.167
A151: 2015-08-03 | B151: =ROUND(-0.108,10) -> -0.108 | C151: =ROUND(-0.133,10) -> -0.133 | D151: =ROUND(-0.124,10) -> -0.124 | E151: =ROUND(-0.078,10) -> -0.078 | F151: =ROUND(-0.046,10) -> -0.046 | G151: =ROUND(-0.023,10) -> -0.023 | H151: =ROUND(0.049,10) -> 0.049 | I151: 0.098 | J151: =ROUND(0.166,10) -> 0.166
A152: 2015-08-04 | B152: =ROUND(-0.11,10) -> -0.11 | C152: =ROUND(-0.133,10) -> -0.133 | D152: =ROUND(-0.124,10) -> -0.124 | E152: =ROUND(-0.079,10) -> -0.079 | F152: =ROUND(-0.048,10) -> -0.048 | G152: =ROUND(-0.023,10) -> -0.023 | H152: =ROUND(0.048,10) -> 0.048 | I152: 0.098 | J152: =ROUND(0.164,10) -> 0.164
A153: 2015-08-05 | B153: =ROUND(-0.108,10) -> -0.108 | C153: =ROUND(-0.134,10) -> -0.134 | D153: =ROUND(-0.126,10) -> -0.126 | E153: =ROUND(-0.079,10) -> -0.079 | F153: =ROUND(-0.049,10) -> -0.049 | G153: =ROUND(-0.024,10) -> -0.024 | H153: =ROUND(0.048,10) -> 0.048 | I153: 0.098 | J153: =ROUND(0.163,10) -> 0.163
A154: 2015-08-06 | B154: =ROUND(-0.116,10) -> -0.116 | C154: =ROUND(-0.133,10) -> -0.133 | D154: =ROUND(-0.127,10) -> -0.127 | E154: =ROUND(-0.08,10) -> -0.08 | F154: =ROUND(-0.049,10) -> -0.049 | G154: -0.024 | H154: =ROUND(0.047,10) -> 0.047 | I154: 0.098 | J154: =ROUND(0.163,10) -> 0.163
A155: 2015-08-07 | B155: =ROUND(-0.119,10) -> -0.119 | C155: =ROUND(-0.135,10) -> -0.135 | D155: =ROUND(-0.129,10) -> -0.129 | E155: =ROUND(-0.081,10) -> -0.081 | F155: =ROUND(-0.049,10) -> -0.049 | G155: -0.024 | H155: =ROUND(0.046,10) -> 0.046 | I155: 0.098 | J155: =ROUND(0.163,10) -> 0.163
A156: 2015-08-10 | B156: =ROUND(-0.129,10) -> -0.129 | C156: =ROUND(-0.137,10) -> -0.137 | D156: =ROUND(-0.129,10) -> -0.129 | E156: =ROUND(-0.082,10) -> -0.082 | F156: =ROUND(-0.049,10) -> -0.049 | G156: -0.024 | H156: =ROUND(0.048,10) -> 0.048 | I156: =ROUND(0.099,10) -> 0.099 | J156: =ROUND(0.162,10) -> 0.162
A157: 2015-08-11 | B157: =ROUND(-0.117,10) -> -0.117 | C157: =ROUND(-0.139,10) -> -0.139 | D157: =ROUND(-0.13,10) -> -0.13 | E157: =ROUND(-0.082,10) -> -0.082 | F157: =ROUND(-0.05,10) -> -0.05 | G157: -0.024 | H157: =ROUND(0.046,10) -> 0.046 | I157: =ROUND(0.098,10) -> 0.098 | J157: =ROUND(0.162,10) -> 0.162
A158: 2015-08-12 | B158: =ROUND(-0.124,10) -> -0.124 | C158: =ROUND(-0.139,10) -> -0.139 | D158: =ROUND(-0.131,10) -> -0.131 | E158: =ROUND(-0.083,10) -> -0.083 | F158: =ROUND(-0.051,10) -> -0.051 | G158: -0.024 | H158: =ROUND(0.046,10) -> 0.046 | I158: =ROUND(0.098,10) -> 0.098 | J158: =ROUND(0.161,10) -> 0.161
A159: 2015-08-13 | B159: =ROUND(-0.129,10) -> -0.129 | C159: =ROUND(-0.14,10) -> -0.14 | D159: =ROUND(-0.132,10) -> -0.132 | E159: =ROUND(-0.084,10) -> -0.084 | F159: =ROUND(-0.05,10) -> -0.05 | G159: -0.024 | H159: =ROUND(0.046,10) -> 0.046 | I159: =ROUND(0.098,10) -> 0.098 | J159: =ROUND(0.161,10) -> 0.161
A160: 2015-08-14 | B160: =ROUND(-0.13,10) -> -0.13 | C160: =ROUND(-0.141,10) -> -0.141 | D160: =ROUND(-0.131,10) -> -0.131 | E160: =ROUND(-0.085,10) -> -0.085 | F160: =ROUND(-0.052,10) -> -0.052 | G160: =ROUND(-0.025,10) -> -0.025 | H160: =ROUND(0.046,10) -> 0.046 | I160: =ROUND(0.097,10) -> 0.097 | J160: =ROUND(0.161,10) -> 0.161
A161: 2015-08-17 | B161: =ROUND(-0.122,10) -> -0.122 | C161: =ROUND(-0.142,10) -> -0.142 | D161: =ROUND(-0.13,10) -> -0.13 | E161: =ROUND(-0.088,10) -> -0.088 | F161: =ROUND(-0.052,10) -> -0.052 | G161: =ROUND(-0.027,10) -> -0.027 | H161: =ROUND(0.044,10) -> 0.044 | I161: =ROUND(0.096,10) -> 0.096 | J161: =ROUND(0.161,10) -> 0.161
A162: 2015-08-18 | B162: =ROUND(-0.126,10) -> -0.126 | C162: =ROUND(-0.143,10) -> -0.143 | D162: =ROUND(-0.131,10) -> -0.131 | E162: =ROUND(-0.089,10) -> -0.089 | F162: =ROUND(-0.053,10) -> -0.053 | G162: =ROUND(-0.028,10) -> -0.028 | H162: =ROUND(0.043,10) -> 0.043 | I162: =ROUND(0.093,10) -> 0.093 | J162: =ROUND(0.159,10) -> 0.159
A163: 2015-08-19 | B163: =ROUND(-0.119,10) -> -0.119 | C163: =ROUND(-0.143,10) -> -0.143 | D163: =ROUND(-0.132,10) -> -0.132 | E163: =ROUND(-0.089,10) -> -0.089 | F163: =ROUND(-0.054,10) -> -0.054 | G163: =ROUND(-0.029,10) -> -0.029 | H163: =ROUND(0.042,10) -> 0.042 | I163: =ROUND(0.091,10) -> 0.091 | J163: =ROUND(0.16,10) -> 0.16
A164: 2015-08-20 | B164: =ROUND(-0.118,10) -> -0.118 | C164: =ROUND(-0.143,10) -> -0.143 | D164: =ROUND(-0.131,10) -> -0.131 | E164: =ROUND(-0.091,10) -> -0.091 | F164: =ROUND(-0.054,10) -> -0.054 | G164: =ROUND(-0.03,10) -> -0.03 | H164: =ROUND(0.042,10) -> 0.042 | I164: =ROUND(0.09,10) -> 0.09 | J164: =ROUND(0.159,10) -> 0.159
A165: 2015-08-21 | B165: =ROUND(-0.119,10) -> -0.119 | C165: =ROUND(-0.142,10) -> -0.142 | D165: =ROUND(-0.13,10) -> -0.13 | E165: =ROUND(-0.092,10) -> -0.092 | F165: =ROUND(-0.054,10) -> -0.054 | G165: =ROUND(-0.031,10) -> -0.031 | H165: =ROUND(0.042,10) -> 0.042 | I165: =ROUND(0.091,10) -> 0.091 | J165: =ROUND(0.16,10) -> 0.16
A166: 2015-08-24 | B166: =ROUND(-0.126,10) -> -0.126 | C166: =ROUND(-0.139,10) -> -0.139 | D166: =ROUND(-0.131,10) -> -0.131 | E166: =ROUND(-0.094,10) -> -0.094 | F166: =ROUND(-0.056,10) -> -0.056 | G166: =ROUND(-0.032,10) -> -0.032 | H166: =ROUND(0.041,10) -> 0.041 | I166: 0.091 | J166: =ROUND(0.16,10) -> 0.16
A167: 2015-08-25 | B167: =ROUND(-0.135,10) -> -0.135 | C167: =ROUND(-0.138,10) -> -0.138 | D167: =ROUND(-0.133,10) -> -0.133 | E167: =ROUND(-0.096,10) -> -0.096 | F167: =ROUND(-0.058,10) -> -0.058 | G167: =ROUND(-0.033,10) -> -0.033 | H167: =ROUND(0.041,10) -> 0.041 | I167: 0.091 | J167: =ROUND(0.161,10) -> 0.161
A168: 2015-08-26 | B168: =ROUND(-0.129,10) -> -0.129 | C168: =ROUND(-0.138,10) -> -0.138 | D168: =ROUND(-0.133,10) -> -0.133 | E168: =ROUND(-0.098,10) -> -0.098 | F168: =ROUND(-0.059,10) -> -0.059 | G168: -0.033 | H168: =ROUND(0.039,10) -> 0.039 | I168: 0.091 | J168: =ROUND(0.16,10) -> 0.16
A169: 2015-08-27 | B169: =ROUND(-0.127,10) -> -0.127 | C169: =ROUND(-0.141,10) -> -0.141 | D169: =ROUND(-0.134,10) -> -0.134 | E169: =ROUND(-0.099,10) -> -0.099 | F169: =ROUND(-0.059,10) -> -0.059 | G169: -0.033 | H169: =ROUND(0.039,10) -> 0.039 | I169: 0.091 | J169: =ROUND(0.16,10) -> 0.16
A170: 2015-08-28 | B170: =ROUND(-0.126,10) -> -0.126 | C170: =ROUND(-0.139,10) -> -0.139 | D170: =ROUND(-0.135,10) -> -0.135 | E170: =ROUND(-0.098,10) -> -0.098 | F170: =ROUND(-0.06,10) -> -0.06 | G170: -0.033 | H170: =ROUND(0.04,10) -> 0.04 | I170: 0.091 | J170: =ROUND(0.161,10) -> 0.161
A171: 2015-08-31 | B171: =ROUND(-0.11,10) -> -0.11 | C171: =ROUND(-0.143,10) -> -0.143 | D171: =ROUND(-0.137,10) -> -0.137 | E171: =ROUND(-0.098,10) -> -0.098 | F171: =ROUND(-0.059,10) -> -0.059 | G171: -0.033 | H171: =ROUND(0.039,10) -> 0.039 | I171: 0.091 | J171: =ROUND(0.16,10) -> 0.16
A172: 2015-09-01 | B172: =ROUND(-0.125,10) -> -0.125 | C172: =ROUND(-0.143,10) -> -0.143 | D172: =ROUND(-0.139,10) -> -0.139 | E172: =ROUND(-0.099,10) -> -0.099 | F172: =ROUND(-0.059,10) -> -0.059 | G172: -0.033 | H172: =ROUND(0.039,10) -> 0.039 | I172: 0.091 | J172: =ROUND(0.161,10) -> 0.161
A173: 2015-09-02 | B173: =ROUND(-0.125,10) -> -0.125 | C173: =ROUND(-0.143,10) -> -0.143 | D173: =ROUND(-0.139,10) -> -0.139 | E173: =ROUND(-0.102,10) -> -0.102 | F173: =ROUND(-0.061,10) -> -0.061 | G173: -0.033 | H173: =ROUND(0.039,10) -> 0.039 | I173: =ROUND(0.09,10) -> 0.09 | J173: =ROUND(0.16,10) -> 0.16
A174: 2015-09-03 | B174: =ROUND(-0.124,10) -> -0.124 | C174: =ROUND(-0.142,10) -> -0.142 | D174: =ROUND(-0.14,10) -> -0.14 | E174: =ROUND(-0.103,10) -> -0.103 | F174: =ROUND(-0.061,10) -> -0.061 | G174: -0.033 | H174: =ROUND(0.038,10) -> 0.038 | I174: =ROUND(0.09,10) -> 0.09 | J174: =ROUND(0.161,10) -> 0.161
A175: 2015-09-04 | B175: =ROUND(-0.133,10) -> -0.133 | C175: =ROUND(-0.144,10) -> -0.144 | D175: =ROUND(-0.141,10) -> -0.141 | E175: =ROUND(-0.104,10) -> -0.104 | F175: =ROUND(-0.061,10) -> -0.061 | G175: =ROUND(-0.034,10) -> -0.034 | H175: 0.038 | I175: =ROUND(0.087,10) -> 0.087 | J175: =ROUND(0.158,10) -> 0.158
A176: 2015-09-07 | B176: =ROUND(-0.136,10) -> -0.136 | C176: =ROUND(-0.146,10) -> -0.146 | D176: =ROUND(-0.14,10) -> -0.14 | E176: =ROUND(-0.104,10) -> -0.104 | F176: =ROUND(-0.063,10) -> -0.063 | G176: =ROUND(-0.034,10) -> -0.034 | H176: 0.038 | I176: =ROUND(0.088,10) -> 0.088 | J176: =ROUND(0.158,10) -> 0.158
A177: 2015-09-08 | B177: =ROUND(-0.134,10) -> -0.134 | C177: =ROUND(-0.149,10) -> -0.149 | D177: =ROUND(-0.141,10) -> -0.141 | E177: =ROUND(-0.104,10) -> -0.104 | F177: -0.063 | G177: =ROUND(-0.035,10) -> -0.035 | H177: 0.038 | I177: 0.088 | J177: =ROUND(0.158,10) -> 0.158
A178: 2015-09-09 | B178: =ROUND(-0.13,10) -> -0.13 | C178: =ROUND(-0.149,10) -> -0.149 | D178: =ROUND(-0.141,10) -> -0.141 | E178: =ROUND(-0.104,10) -> -0.104 | F178: -0.063 | G178: =ROUND(-0.035,10) -> -0.035 | H178: 0.038 | I178: 0.088 | J178: =ROUND(0.158,10) -> 0.158
A179: 2015-09-10 | B179: =ROUND(-0.132,10) -> -0.132 | C179: =ROUND(-0.149,10) -> -0.149 | D179: =ROUND(-0.142,10) -> -0.142 | E179: =ROUND(-0.103,10) -> -0.103 | F179: -0.063 | G179: =ROUND(-0.036,10) -> -0.036 | H179: 0.038 | I179: 0.088 | J179: =ROUND(0.157,10) -> 0.157
A180: 2015-09-11 | B180: =ROUND(-0.13,10) -> -0.13 | C180: =ROUND(-0.148,10) -> -0.148 | D180: =ROUND(-0.141,10) -> -0.141 | E180: =ROUND(-0.104,10) -> -0.104 | F180: -0.063 | G180: =ROUND(-0.038,10) -> -0.038 | H180: =ROUND(0.037,10) -> 0.037 | I180: 0.088 | J180: =ROUND(0.157,10) -> 0.157
A181: 2015-09-14 | B181: =ROUND(-0.14,10) -> -0.14 | C181: =ROUND(-0.148,10) -> -0.148 | D181: =ROUND(-0.142,10) -> -0.142 | E181: =ROUND(-0.104,10) -> -0.104 | F181: -0.063 | G181: =ROUND(-0.038,10) -> -0.038 | H181: =ROUND(0.037,10) -> 0.037 | I181: 0.088 | J181: =ROUND(0.157,10) -> 0.157
A182: 2015-09-15 | B182: =ROUND(-0.142,10) -> -0.142 | C182: =ROUND(-0.148,10) -> -0.148 | D182: =ROUND(-0.139,10) -> -0.139 | E182: =ROUND(-0.104,10) -> -0.104 | F182: -0.063 | G182: =ROUND(-0.036,10) -> -0.036 | H182: =ROUND(0.036,10) -> 0.036 | I182: =ROUND(0.086,10) -> 0.086 | J182: =ROUND(0.155,10) -> 0.155
A183: 2015-09-16 | B183: =ROUND(-0.136,10) -> -0.136 | C183: =ROUND(-0.148,10) -> -0.148 | D183: =ROUND(-0.139,10) -> -0.139 | E183: =ROUND(-0.103,10) -> -0.103 | F183: -0.063 | G183: =ROUND(-0.037,10) -> -0.037 | H183: =ROUND(0.036,10) -> 0.036 | I183: =ROUND(0.088,10) -> 0.088 | J183: =ROUND(0.156,10) -> 0.156
A184: 2015-09-17 | B184: =ROUND(-0.138,10) -> -0.138 | C184: =ROUND(-0.149,10) -> -0.149 | D184: =ROUND(-0.139,10) -> -0.139 | E184: =ROUND(-0.103,10) -> -0.103 | F184: -0.063 | G184: =ROUND(-0.037,10) -> -0.037 | H184: =ROUND(0.036,10) -> 0.036 | I184: =ROUND(0.088,10) -> 0.088 | J184: =ROUND(0.156,10) -> 0.156
A185: 2015-09-18 | B185: =ROUND(-0.141,10) -> -0.141 | C185: =ROUND(-0.148,10) -> -0.148 | D185: =ROUND(-0.139,10) -> -0.139 | E185: =ROUND(-0.102,10) -> -0.102 | F185: =ROUND(-0.064,10) -> -0.064 | G185: =ROUND(-0.037,10) -> -0.037 | H185: =ROUND(0.036,10) -> 0.036 | I185: =ROUND(0.088,10) -> 0.088 | J185: =ROUND(0.154,10) -> 0.154
A186: 2015-09-21 | B186: =ROUND(-0.145,10) -> -0.145 | C186: =ROUND(-0.148,10) -> -0.148 | D186: =ROUND(-0.14,10) -> -0.14 | E186: =ROUND(-0.104,10) -> -0.104 | F186: =ROUND(-0.063,10) -> -0.063 | G186: =ROUND(-0.038,10) -> -0.038 | H186: =ROUND(0.036,10) -> 0.036 | I186: =ROUND(0.086,10) -> 0.086 | J186: =ROUND(0.152,10) -> 0.152
A187: 2015-09-22 | B187: =ROUND(-0.142,10) -> -0.142 | C187: =ROUND(-0.144,10) -> -0.144 | D187: =ROUND(-0.14,10) -> -0.14 | E187: =ROUND(-0.103,10) -> -0.103 | F187: =ROUND(-0.064,10) -> -0.064 | G187: =ROUND(-0.039,10) -> -0.039 | H187: =ROUND(0.034,10) -> 0.034 | I187: =ROUND(0.085,10) -> 0.085 | J187: =ROUND(0.15,10) -> 0.15
A188: 2015-09-23 | B188: =ROUND(-0.143,10) -> -0.143 | C188: =ROUND(-0.141,10) -> -0.141 | D188: =ROUND(-0.143,10) -> -0.143 | E188: =ROUND(-0.107,10) -> -0.107 | F188: =ROUND(-0.066,10) -> -0.066 | G188: =ROUND(-0.039,10) -> -0.039 | H188: =ROUND(0.033,10) -> 0.033 | I188: =ROUND(0.083,10) -> 0.083 | J188: =ROUND(0.147,10) -> 0.147
A189: 2015-09-24 | B189: =ROUND(-0.143,10) -> -0.143 | C189: =ROUND(-0.141,10) -> -0.141 | D189: =ROUND(-0.141,10) -> -0.141 | E189: =ROUND(-0.109,10) -> -0.109 | F189: =ROUND(-0.069,10) -> -0.069 | G189: =ROUND(-0.04,10) -> -0.04 | H189: =ROUND(0.032,10) -> 0.032 | I189: =ROUND(0.081,10) -> 0.081 | J189: =ROUND(0.148,10) -> 0.148
A190: 2015-09-25 | B190: =ROUND(-0.143,10) -> -0.143 | C190: =ROUND(-0.141,10) -> -0.141 | D190: =ROUND(-0.142,10) -> -0.142 | E190: =ROUND(-0.111,10) -> -0.111 | F190: =ROUND(-0.07,10) -> -0.07 | G190: =ROUND(-0.041,10) -> -0.041 | H190: =ROUND(0.03,10) -> 0.03 | I190: =ROUND(0.081,10) -> 0.081 | J190: =ROUND(0.146,10) -> 0.146
A191: 2015-09-28 | B191: =ROUND(-0.146,10) -> -0.146 | C191: =ROUND(-0.141,10) -> -0.141 | D191: =ROUND(-0.143,10) -> -0.143 | E191: =ROUND(-0.111,10) -> -0.111 | F191: =ROUND(-0.07,10) -> -0.07 | G191: =ROUND(-0.041,10) -> -0.041 | H191: =ROUND(0.029,10) -> 0.029 | I191: =ROUND(0.078,10) -> 0.078 | J191: =ROUND(0.145,10) -> 0.145
A192: 2015-09-29 | B192: =ROUND(-0.135,10) -> -0.135 | C192: =ROUND(-0.144,10) -> -0.144 | D192: =ROUND(-0.144,10) -> -0.144 | E192: =ROUND(-0.113,10) -> -0.113 | F192: =ROUND(-0.072,10) -> -0.072 | G192: =ROUND(-0.041,10) -> -0.041 | H192: =ROUND(0.029,10) -> 0.029 | I192: =ROUND(0.078,10) -> 0.078 | J192: =ROUND(0.143,10) -> 0.143
A193: 2015-09-30 | B193: =ROUND(-0.122,10) -> -0.122 | C193: =ROUND(-0.145,10) -> -0.145 | D193: =ROUND(-0.143,10) -> -0.143 | E193: =ROUND(-0.113,10) -> -0.113 | F193: =ROUND(-0.07,10) -> -0.07 | G193: =ROUND(-0.04,10) -> -0.04 | H193: =ROUND(0.029,10) -> 0.029 | I193: =ROUND(0.078,10) -> 0.078 | J193: =ROUND(0.142,10) -> 0.142
A194: 2015-10-01 | B194: =ROUND(-0.142,10) -> -0.142 | C194: =ROUND(-0.146,10) -> -0.146 | D194: =ROUND(-0.143,10) -> -0.143 | E194: =ROUND(-0.113,10) -> -0.113 | F194: =ROUND(-0.071,10) -> -0.071 | G194: =ROUND(-0.043,10) -> -0.043 | H194: =ROUND(0.027,10) -> 0.027 | I194: =ROUND(0.077,10) -> 0.077 | J194: =ROUND(0.14,10) -> 0.14
A195: 2015-10-02 | B195: =ROUND(-0.139,10) -> -0.139 | C195: =ROUND(-0.147,10) -> -0.147 | D195: =ROUND(-0.143,10) -> -0.143 | E195: =ROUND(-0.113,10) -> -0.113 | F195: =ROUND(-0.071,10) -> -0.071 | G195: =ROUND(-0.044,10) -> -0.044 | H195: =ROUND(0.026,10) -> 0.026 | I195: =ROUND(0.075,10) -> 0.075 | J195: =ROUND(0.139,10) -> 0.139
A196: 2015-10-05 | B196: =ROUND(-0.144,10) -> -0.144 | C196: =ROUND(-0.149,10) -> -0.149 | D196: =ROUND(-0.144,10) -> -0.144 | E196: =ROUND(-0.113,10) -> -0.113 | F196: =ROUND(-0.072,10) -> -0.072 | G196: =ROUND(-0.046,10) -> -0.046 | H196: =ROUND(0.027,10) -> 0.027 | I196: =ROUND(0.074,10) -> 0.074 | J196: =ROUND(0.137,10) -> 0.137
A197: 2015-10-06 | B197: =ROUND(-0.134,10) -> -0.134 | C197: =ROUND(-0.149,10) -> -0.149 | D197: -0.144 | E197: =ROUND(-0.112,10) -> -0.112 | F197: =ROUND(-0.072,10) -> -0.072 | G197: =ROUND(-0.046,10) -> -0.046 | H197: =ROUND(0.027,10) -> 0.027 | I197: =ROUND(0.073,10) -> 0.073 | J197: =ROUND(0.139,10) -> 0.139
A198: 2015-10-07 | B198: =ROUND(-0.139,10) -> -0.139 | C198: =ROUND(-0.15,10) -> -0.15 | D198: -0.144 | E198: =ROUND(-0.113,10) -> -0.113 | F198: =ROUND(-0.072,10) -> -0.072 | G198: =ROUND(-0.046,10) -> -0.046 | H198: =ROUND(0.028,10) -> 0.028 | I198: =ROUND(0.074,10) -> 0.074 | J198: =ROUND(0.14,10) -> 0.14
A199: 2015-10-08 | B199: =ROUND(-0.138,10) -> -0.138 | C199: =ROUND(-0.15,10) -> -0.15 | D199: -0.144 | E199: =ROUND(-0.114,10) -> -0.114 | F199: =ROUND(-0.074,10) -> -0.074 | G199: =ROUND(-0.048,10) -> -0.048 | H199: =ROUND(0.028,10) -> 0.028 | I199: =ROUND(0.073,10) -> 0.073 | J199: =ROUND(0.139,10) -> 0.139
A200: 2015-10-09 | B200: =ROUND(-0.142,10) -> -0.142 | C200: =ROUND(-0.149,10) -> -0.149 | D200: -0.144 | E200: =ROUND(-0.113,10) -> -0.113 | F200: =ROUND(-0.073,10) -> -0.073 | G200: =ROUND(-0.049,10) -> -0.049 | H200: =ROUND(0.028,10) -> 0.028 | I200: =ROUND(0.072,10) -> 0.072 | J200: =ROUND(0.139,10) -> 0.139
... 570 more rows
